{"text_format":"1","workbook":"xlsx","n_sheets":8,"sheets":["Narrative","Budget","Transferability","GEPA","Private Schools","Sheet1","Eisenhower","Prefills"],"not_rendered":{"charts":0,"images":2,"macros":1,"external_links":5,"defined_names":217,"comments":2,"pivot_tables":0},"unopened":[],"bounds":{"document_bytes":16777216,"sheet_cells":100000,"rows_first":2000,"rows_last":500,"rows_between":2000,"halvings":0,"cell_chars":16384,"cell_head_chars":4096},"cells_cut":0,"cells_raw":0,"read":"whole","date_system":"1900"}

{"sheet":"Narrative","index":0,"n_rows":207,"n_cols":16,"rows_kept":207,"cut":false,"hidden":false,"merged":[[185,0,185,15],[182,0,182,15],[174,0,174,15],[168,0,168,15],[171,0,171,15],[206,0,206,15],[192,0,192,15],[177,0,177,15],[44,2,44,3],[122,0,122,15],[131,0,131,15],[140,0,140,15],[194,0,194,15],[181,0,181,15],[183,0,183,15],[184,0,184,15],[187,0,187,15],[189,0,189,15],[186,0,186,15],[180,0,180,15],[65,12,65,15],[66,7,66,11],[166,0,166,15],[164,1,164,15],[165,1,165,15],[167,0,167,15],[156,0,156,15],[197,0,197,15],[188,0,188,15],[143,0,143,15],[149,0,149,15],[152,0,152,15],[16,7,16,8],[163,0,163,15],[179,0,179,15],[148,0,148,15],[170,0,170,15],[173,0,173,15],[172,0,172,15],[169,0,169,15],[160,0,160,15],[159,0,159,15],[150,0,150,15],[175,0,175,15],[176,0,176,15],[46,13,46,15],[47,13,47,15],[52,0,52,15],[54,0,54,15],[55,0,55,15],[158,0,158,15],[161,0,161,15],[0,12,0,15],[1,13,1,14],[3,13,3,14],[5,14,5,15],[7,13,7,14],[136,0,136,15],[145,0,145,15],[154,0,154,15],[147,0,147,15],[17,13,17,15],[18,0,19,6],[18,7,18,15],[19,7,19,15],[20,0,20,15],[22,0,22,15],[9,14,9,15],[16,0,16,6],[15,0,15,6],[17,0,17,6],[17,7,17,8],[15,9,15,15],[15,7,15,8],[16,9,16,15],[17,9,17,11],[23,0,23,15],[24,0,24,15],[26,0,26,15],[27,1,27,3],[31,0,31,5],[31,7,31,14],[29,0,29,5],[29,7,29,14],[45,0,45,1],[45,2,45,3],[45,13,45,15],[33,0,33,5],[33,7,33,14],[36,0,36,15],[38,0,38,15],[44,0,44,1],[44,4,44,12],[44,13,44,15],[42,0,42,15],[45,4,45,12],[40,0,40,15],[151,0,151,15],[157,0,157,15],[134,0,134,15],[46,4,46,12],[47,8,47,12],[112,0,112,15],[113,0,113,15],[119,0,119,15],[123,0,123,15],[129,0,129,15],[141,0,141,15],[155,0,155,15],[137,0,137,15],[138,0,138,15],[139,0,139,15],[146,0,146,15],[142,0,142,15],[132,0,132,15],[133,0,133,15],[130,0,130,15],[58,0,58,4],[58,6,58,11],[58,12,58,15],[59,0,59,4],[205,0,205,15],[190,0,190,15],[196,0,196,15],[198,0,198,15],[199,0,199,15],[202,0,202,15],[201,0,201,15],[195,0,195,15],[204,0,204,15],[59,6,59,11],[59,12,59,15],[62,0,62,4],[62,6,62,11],[62,12,62,15],[63,0,68,4],[63,5,68,5],[63,7,63,11],[63,12,63,15],[64,7,64,11],[64,12,64,15],[65,7,65,11],[69,7,69,11],[69,12,69,15],[66,12,66,15],[67,7,67,11],[67,12,67,15],[68,7,68,11],[68,12,68,15],[72,0,72,15],[74,0,74,15],[70,0,70,15],[75,7,76,15],[78,7,79,15],[125,0,125,15],[128,0,128,15],[114,0,114,15],[120,0,120,15],[118,0,118,15],[105,0,105,15],[110,0,110,15],[81,7,82,15],[84,7,85,15],[87,7,88,15],[90,7,91,15],[93,7,94,15],[96,7,97,15],[107,0,107,15],[102,0,102,15],[104,0,104,15],[99,7,100,15],[124,0,124,15],[121,0,121,15],[111,0,111,15],[116,0,116,15],[11,2,11,11],[12,2,12,11],[1,2,1,11],[3,2,3,11],[2,2,2,11],[4,2,4,11],[6,2,6,11],[9,2,9,11],[8,2,8,11],[7,2,7,11],[10,2,10,11]]}
[null,null,null,null,null,null,null,null,null,null,null,null,"Place an \"X\" by the applicable response."]
[null,null,"Virginia Department of Education",null,null,null,null,null,null,null,null,null,"X"," Original "]
[null,null,"Office of ESEA Programs"]
[null,null,"P. O. Box 2120",null,null,null,null,null,null,null,null,null,null,"Revision :   "]
[null,null,"Richmond, Virginia 23218-2120",null,null,null,null,null,null,null,null,null,null,"Revision #"]
[null,null,null,null,null,null,null,null,null,null,null,null,null,"Date:"]
[null,null,"A.  COVER PAGE",null,null,null,null,null,null,null,null,null,null,"Explain"]
[null,null,"Title IV, Part A, Student Support and Academic Enrichment Grants",null,null,null,null,null,null,null,null,null,null,"Amendment:"]
[null,null,null,null,null,null,null,null,null,null,null,null,null,"Amendment # "]
[null,null,"2019-2020 Individual Program Application",null,null,null,null,null,null,null,null,null,null,"Date:       "]
[null,null,"Due by July 1, 2019",null,null,null,null,null,null,null,null,null,null,"Explain"]
[null,null,"Elementary and Secondary Education Act of 1965 (ESEA), as amended by"]
[null,null,"the Every Student Succeeds Act of 2015 (ESSA), P.L. 114-95"]
[]
["To be Completed by School Division"]
["Applicant  (Legal Name of Agency)",null,null,null,null,null,null,"Division Number",null,"Title IV, Part A, Coordinator "]
["ALBEMARLE COUNTY PUBLIC SCHOOLS",null,null,null,null,null,null,{"$f":"IF(ISBLANK(A17),\" \",VLOOKUP(A17,Prefills!A2:B148,2))","v":2},null,"Debora Collins"]
["Mailing Address (Street, City or Town, Zip Code)",null,null,null,null,null,null,"Phone:",null,"434-296-5820",null,null,"Ext:"]
["401 McIntire Road\nCharlottesville, VA  22902",null,null,null,null,null,null,"Email:"]
[null,null,null,null,null,null,null,"dcollins@k12albemarle.org"]
[]
["LOCAL EDUCATIONAL AGENCY CERTIFICATION"]
["Use of Funds:  The applicant designated above applies for an allocation of federal assistance as appropriated under ESEA.  Funds are available to support local education reform efforts that are consistent with statewide education reform efforts to: 1) provide funding to implement promising education reform programs and school improvement programs based on evidence-based research;  2) provide a continuing source of innovative and educational improvement;  3) meet the educational needs of all students; and 4) develop and implement education programs to improve student achievement and teacher performance. \n\nSpecific uses of funds for this application are found in the \"Guidelines, Instructions, and Assurances\" document."]
[]
["Assurances:  The local educational agency assures that the Title IV, Part A, program will be administered and implemented in compliance with all applicable statutes, regulations, policies, and program plans.  Additionally, the local educational agency agrees by signing below to implement the general and program specific assurances located in the “Application Guidelines, Instructions, and Assurances” document.  The assurances and signed cover page are to be retained at the division level.  "]
[]
["Certification:  We hereby certify that, to the best of our knowledge, the information contained in this application is correct.  The agency named above has authorized us as its representatives to file this application, and such action is recorded in the minutes of the School Board meeting held "]
["on","2019-05-23",null,null,"."]
[]
[]
["Superintendent’s Signature",null,null,null,null,null,null,"Board Chairperson’s Signature"]
["Dr. Matthew Haas",null,null,null,null,null,null,"Jonno Alcaro"]
["Superintendent’s Name",null,null,null,null,null,null,"Board Chairperson’s Name"]
["2019-06-13",null,null,null,null,null,null,"2019-06-13"]
["Date",null,null,null,null,null,null,"Date"]
[]
["Application Submission, Approval, and LEA Expenditure of Funds: This application for Federal Funds is due by July 1, 2019.  Revisions and Amendments should be submitted in a timely manner.  Please note, in order for the funds to be expendable, the electronic application must be received at the Virginia Department of Education through the file submission process of the Online Management of Education Grant Awards (OMEGA) system.  "]
[]
[]
[]
["Page 1"]
[null,null,null,null,"School Division:",null,{"$f":"$A$17","v":"ALBEMARLE COUNTY PUBLIC SCHOOLS"},null,null,null,null,null,"Division Number:",null,null,{"$f":"$H$17","v":2}]
["APPLICATION INFORMATION"]
[]
["2018 - 2019\nAllocation",null,"2018 - 2019\nConsolidated\nYes or No",null,"Program",null,null,null,null,null,null,null,null,"2019-2020\nAllocation Total"]
[{"$f":"IF(ISBLANK($A$17),\" \",VLOOKUP($H$17,Prefills!$AX$3:$BA$142,4))","v":105615.08197445725},null,"No",null,"Title IV, Part A, Student Support and Academic Enrichment Grant",null,null,null,null,null,null,null,null,105615]
[null,null,null,null,"Transferability (funds transferred out of Title IVA)",null,null,null,null,null,null,null,null,{"$f":"M70","v":105615}]
[null,null,null,null,null,null,null,null,"Total Allocation Available for Title IV, Part A",null,null,null,null,{"$f":"N46-N47","v":0}]
[]
[]
[]
[]
["TRANSFERABILITY"]
[]
["Section 5103(b)(2) of the Every Student Succeeds Act allows LEAs to transfer funds between certain qualifying federal programs. If funds are transferred into or out of the Title II, Part A, program, PRIOR APPROVAL IS REQUIRED, and a separate Transferability approval form must be submitted. The transfer request form is available at "]
["Transfer Request Form"]
[]
["1) If funds are to be transferred INTO Title IV, Part A, complete Section A."]
["A.  Program from which funds will be transferred",null,null,null,null,null,"Program TO which funds will be transferred:",null,null,null,null,null,"Amount"]
["Title II, Part A",null,null,null,null,"TO","Title IV, Part A, Student Support and Academic Enrichment Grant"]
[]
["2) Place an \"X\" next to the federal programs you are requesting funds to be transferred to."]
["B.  Program from which funds will be transferred:",null,null,null,null,null,"Select program(s) TO which funds will be transferred:",null,null,null,null,null,"Amount"]
["Title IV, Part A",null,null,null,null,"TO",null,"Title I, Part A",null,null,null,null,65615]
[null,null,null,null,null,null,null,"Title I, Part C"]
[null,null,null,null,null,null,null,"Title I, Part D"]
[null,null,null,null,null,null,null,"Title II, Part A",null,null,null,null,40000]
[null,null,null,null,null,null,null,"Title III, Part A"]
[null,null,null,null,null,null,null,"Title V, Part B"]
[null,null,null,null,null,null,null,"Total",null,null,null,null,{"$f":"SUM(M64:P69)","v":105615}]
["Page 2"]
[null,null,null,null,"School Division:",null,{"$f":"$A$17","v":"ALBEMARLE COUNTY PUBLIC SCHOOLS"},null,null,null,null,null,"Division Number:",null,null,{"$f":"$H$17","v":2}]
["REVISIONS AND AMENDMENTS"]
[]
["Place an \"X\" in the first box indicating whether it is a revision or amendment. Enter the date of the revision or amendment.  Indicate the tab(s) that have been changed. Provide a concise description of changes (for example, \"Programmatic Changes--purchase of additional reading materials, object code 6000; Budget Changes--decreased travel budget in object code 5000 and increased materials to purchase additional reading materials in object code 6000\"). When completing an amendment, changes to the program overview may be reflected as additions at the end of the narrative.\n\nNOTE: Any changes to the program budget should first be reflected in an amended application, followed by a budget transfer within 7 business days of approval of the amended application. Budget transfers will not be accepted without an approved amended application reflecting budget changes."]
["1.","Revision",null,null,null,"Date:"]
[null,"Amendment",null,null,null,"Date:"]
[]
["2.","Revision",null,null,null,"Date:"]
[null,"Amendment",null,null,null,"Date:"]
[]
["3.","Revision",null,null,null,"Date:"]
[null,"Amendment",null,null,null,"Date:"]
[]
["4.","Revision",null,null,null,"Date:"]
[null,"Amendment",null,null,null,"Date:"]
[]
["5.","Revision",null,null,null,"Date:"]
[null,"Amendment",null,null,null,"Date:"]
[]
["6.","Revision",null,null,null,"Date:"]
[null,"Amendment",null,null,null,"Date:"]
[]
["7.","Revision",null,null,null,"Date:"]
[null,"Amendment",null,null,null,"Date:"]
[]
["8.","Revision",null,null,null,"Date:"]
[null,"Amendment",null,null,null,"Date:"]
[]
["9.","Revision",null,null,null,"Date:"]
[null,"Amendment",null,null,null,"Date:"]
[]
["Page 3"]
[null,null,null,null,"School Division:",null,{"$f":"$A$17","v":"ALBEMARLE COUNTY PUBLIC SCHOOLS"},null,null,null,null,null,"Division Number:",null,null,{"$f":"$H$17","v":2}]
["B.  PROGRAM OVERVIEW (5 PAGES)"]
["The purpose of this subpart is to improve students’ academic achievement by increasing the capacity of states, local educational agencies, schools, and local communities to—\n              (1) provide all students with access to a well-rounded education;\n              (2) improve school conditions for student learning; and\n              (3) improve the use of technology in order to improve the academic achievement and digital literacy of\n                   all students."]
[]
["Any local educational agency receiving an allocation in an amount less than $30,000 may designate funds to any of these areas above. Any LEA receiving an allocation of $30,000 or greater must designate funds as follows:\n              • not less than 20 percent of funds to support well-rounded educational opportunities;\n              • not less than 20 percent of funds to safe and healthy students; and\n              • a portion of funds to support effective use of technology; not more than 15 percent of this portion can be used for       \n                 purchasing technology infrastructure."]
[]
["Narrative Boxes"]
["Box 1:  For local education agencies receiving allocations of $30,000 or greater, provide a description of the needs assessment that was conducted to examine needs for improvement in the areas of—\n                              (A) access to, and opportunities for, a well-rounded education for all students;\n                              (B) school conditions for student learning in order to create a healthy and safe school environment; and\n                              (C) access to personalized learning experiences supported by technology and professional development for \n                                    the effective use of data and technology.               \nNote: Local education agencies receiving an allocation in an amount less than $30,000 are not required to complete Box 1."]
[]
[]
[]
[]
[]
["Page 4"]
[null,null,null,null,"School Division:",null,{"$f":"$A$17","v":"ALBEMARLE COUNTY PUBLIC SCHOOLS"},null,null,null,null,null,"Division Number:",null,null,{"$f":"$H$17","v":2}]
["B.  PROGRAM OVERVIEW (CONTINUED)"]
["Box 2:  Describe, if applicable, how funds will be used for activities related to supporting well-rounded education."]
[]
[]
[]
[]
[]
["Page 5"]
[null,null,null,null,"School Division:",null,{"$f":"$A$17","v":"ALBEMARLE COUNTY PUBLIC SCHOOLS"},null,null,null,null,null,"Division Number:",null,null,{"$f":"$H$17","v":2}]
["B.     PROGRAM OVERVIEW (CONTINUED)"]
["Box 3:  Describe, if applicable, how funds will be used for activities related to supporting safe and healthy students."]
[]
[]
[]
[]
[]
["Page 6"]
[null,null,null,null,"School Division:",null,{"$f":"$A$17","v":"ALBEMARLE COUNTY PUBLIC SCHOOLS"},null,null,null,null,null,"Division Number:",null,null,{"$f":"$H$17","v":2}]
["B.  PROGRAM OVERVIEW (CONTINUED)"]
["Box 4:  Describe, if applicable, how funds will be used for activities related to supporting the effective use of technology \nNOTE:  LEAs may not spend more than 15 percent of the funds allocated to the effective use of technology category to purchase equipment, devices, software, platforms, digital instructional resources, or other one-time IT purchases (e.g. if allocating $12,000 to support the effective use of technology, then only $1,800 may be used to purchase technology infrastructure)."]
[]
[]
[]
[]
[]
["Page 7"]
[null,null,null,null,"School Division:",null,{"$f":"$A$17","v":"ALBEMARLE COUNTY PUBLIC SCHOOLS"},null,null,null,null,null,"Division Number:",null,null,{"$f":"$H$17","v":2}]
["B.  PROGRAM OVERVIEW (CONTINUED)"]
["Box 5:  Describe how the local educational agency, or consortium of such agencies, will periodically evaluate the effectiveness of the activities carried out under this section based on such objectives and outcomes."]
[]
[]
[]
[]
[]
["Page 8"]
[null,null,null,null,"School Division:",null,{"$f":"$A$17","v":"ALBEMARLE COUNTY PUBLIC SCHOOLS"},null,null,null,null,null,"Division Number:",null,null,{"$f":"$H$17","v":2}]
["C.  COORDINATION OF SERVICES"]
["Describe the partnerships within the division among the programs in this application and other federal, state and/or local programs in the delivery of services to the targeted population(s).  Describe the collaboration of program staff, parents, and the community to provide services and activities that will contribute to the attainment of the measurable objectives in this application.  Describe any partnership with an institution of higher education, business, nonprofit organization, community-based organization, or other public or private entity with a demonstrated record of success in implementing activities."]
[]
[]
[]
[]
[]
["Page 9"]
[null,null,null,null,"School Division:",null,{"$f":"$A$17","v":"ALBEMARLE COUNTY PUBLIC SCHOOLS"},null,null,null,null,null,"Division Number:",null,null,{"$f":"$H$17","v":2}]
["D.  MEASURABLE OBJECTIVES "]
["1.","State up to six measurable objectives, each inforporating the four components, that will guide the development of the program to be funded with the requested ESEA federal funds. "]
["2.","Describe the evidence-based research that supports the services and activities (programs, models, instructional methods, and techniques) that will be implemented to achieve each objective and that will be supported by the requested funds. \nWhat is a Measurable Objective?\nA measurable objective has four components:\n1) Subject (Who is the target or focus?);\n2) Behavior (What will be changed/improved?);\n3) Specific criteria for assessing improvement, readiness, or achievement and tools to be used to measure effectiveness; and\n4) Time period for performance or assessment.\n"]
["Measurable Objective 1:"]
[]
[]
["Evidence-based research services and activities that will be implemented and supported by the requested funds to achieve the objective:"]
[]
[]
["Measurable Objective 2:"]
[]
[]
["Evidence-based research services and activities that will be implemented and supported by the requested funds to achieve the objective:"]
[]
["Page 10"]
[null,null,null,null,"School Division:",null,{"$f":"$A$17","v":"ALBEMARLE COUNTY PUBLIC SCHOOLS"},null,null,null,null,null,"Division Number:",null,null,{"$f":"$H$17","v":2}]
["D.  MEASURABLE OBJECTIVES (CONTINUED)"]
["Measurable Objective 3:"]
[]
[]
["Evidence-based research services and activities that will be implemented and supported by the requested funds to achieve the objective:"]
[]
[]
["Measurable Objective 4:"]
[]
[]
["Evidence-based research services and activities that will be implemented and supported by the requested funds to achieve the objective:"]
[]
[]
["Page 11"]
[null,null,null,null,"School Division:",null,{"$f":"$A$17","v":"ALBEMARLE COUNTY PUBLIC SCHOOLS"},null,null,null,null,null,"Division Number:",null,null,{"$f":"$H$17","v":2}]
["D.  MEASURABLE OBJECTIVES (CONTINUED)"]
["Measurable Objective 5:"]
[]
[]
["Evidence-based research services and activities that will be implemented and supported by the requested funds to achieve the objective:"]
[]
["     "]
["Measurable Objective 6:"]
[]
[]
["Evidence-based research services and activities that will be implemented and supported by the requested funds to achieve the objective:"]
[]
["Page 12"]

{"sheet":"Budget","index":1,"n_rows":274,"n_cols":17,"rows_kept":274,"cut":false,"hidden":false,"merged":[[63,14,63,16],[65,11,65,13],[76,10,76,13],[68,14,68,16],[64,8,64,10],[62,0,62,7],[56,8,56,10],[56,11,56,13],[61,0,61,7],[64,11,64,13],[68,8,68,10],[64,14,64,16],[66,8,66,10],[67,8,67,10],[74,0,74,9],[67,14,67,16],[61,11,61,13],[17,1,17,5],[19,1,19,5],[20,1,20,5],[21,1,21,5],[31,10,31,11],[27,8,27,9],[32,6,32,7],[57,14,57,16],[61,14,61,16],[35,1,35,5],[35,6,35,7],[35,8,35,9],[35,10,35,11],[38,1,38,5],[38,6,38,7],[38,8,38,9],[38,10,38,11],[18,1,18,5],[18,6,18,7],[18,8,18,9],[18,10,18,11],[24,1,24,5],[24,6,24,7],[37,13,39,16],[32,13,34,16],[27,13,30,16],[12,13,14,16],[6,13,10,16],[6,1,6,5],[7,1,7,5],[37,12,39,12],[32,12,34,12],[27,12,30,12],[22,12,25,12],[16,12,20,12],[30,1,30,5],[31,1,31,5],[32,1,32,5],[33,1,33,5],[36,1,36,5],[37,1,37,5],[39,1,39,5],[8,1,8,5],[9,1,9,5],[11,1,11,5],[22,13,25,16],[16,13,20,16],[15,1,15,5],[16,1,16,5],[6,8,6,9],[11,13,11,16],[14,6,14,7],[8,8,8,9],[11,8,11,9],[7,8,7,9],[9,10,9,11],[10,10,10,11],[10,1,10,5],[13,1,13,5],[13,6,13,7],[13,8,13,9],[13,10,13,11],[10,8,10,9],[6,10,6,11],[7,10,7,11],[8,10,8,11],[6,12,10,12],[12,12,14,12],[198,14,198,16],[97,0,97,9],[262,1,262,16],[265,1,265,16],[267,1,267,16],[268,1,268,16],[111,0,111,16],[123,0,123,9],[123,10,123,13],[123,14,123,16],[114,14,114,16],[115,0,115,9],[192,11,192,13],[213,11,213,13],[214,14,214,16],[214,11,214,13],[233,11,233,13],[213,14,213,16],[206,14,206,16],[205,11,205,13],[206,11,206,13],[203,11,203,13],[203,14,203,16],[204,11,204,13],[122,0,122,9],[104,0,104,9],[104,10,104,13],[105,0,105,9],[83,0,83,9],[105,10,105,13],[95,0,95,9],[87,10,87,13],[84,14,84,16],[91,0,91,16],[85,14,85,16],[87,14,87,16],[85,0,85,9],[84,10,84,13],[106,10,106,13],[86,14,86,16],[95,10,95,13],[96,0,96,9],[102,0,102,9],[88,0,88,16],[120,0,120,9],[120,10,120,13],[120,14,120,16],[103,0,103,9],[193,14,193,16],[176,14,176,16],[187,14,187,16],[193,11,193,13],[195,11,195,13],[180,14,180,16],[181,14,181,16],[178,14,178,16],[179,14,179,16],[184,14,184,16],[185,14,185,16],[182,14,182,16],[190,11,190,13],[191,11,191,13],[188,11,188,13],[183,14,183,16],[186,11,186,13],[186,14,186,16],[187,11,187,13],[188,14,188,16],[189,14,189,16],[182,11,182,13],[202,11,202,13],[201,11,201,13],[196,14,196,16],[200,14,200,16],[199,14,199,16],[197,14,197,16],[198,11,198,13],[98,14,98,16],[190,14,190,16],[125,14,125,16],[122,10,122,13],[194,14,194,16],[196,11,196,13],[195,14,195,16],[175,14,175,16],[192,14,192,16],[191,14,191,16],[115,10,115,13],[114,10,114,13],[202,14,202,16],[201,14,201,16],[99,14,99,16],[104,14,104,16],[105,14,105,16],[12,0,15,0],[34,1,34,5],[36,13,36,16],[12,1,12,5],[14,1,14,5],[15,13,15,16],[16,0,21,0],[31,13,31,16],[21,13,21,16],[22,0,26,0],[26,13,26,16],[27,0,31,0],[34,10,34,11],[36,6,36,7],[36,8,36,9],[31,6,31,7],[31,8,31,9],[36,10,36,11],[32,0,36,0],[33,6,33,7],[12,6,12,7],[21,8,21,9],[19,6,19,7],[28,6,28,7],[119,0,119,9],[119,10,119,13],[119,14,119,16],[115,14,115,16],[110,0,110,16],[107,10,107,13],[112,0,112,16],[113,0,113,16],[116,0,116,9],[118,0,118,9],[118,10,118,13],[118,14,118,16],[95,14,95,16],[97,10,97,13],[97,14,97,16],[116,10,116,13],[116,14,116,16],[117,0,117,9],[117,10,117,13],[117,14,117,16],[96,10,96,13],[102,10,102,13],[102,14,102,16],[99,0,99,9],[99,10,99,13],[106,14,106,16],[106,0,106,9],[100,10,100,13],[100,14,100,16],[101,0,101,9],[101,10,101,13],[101,14,101,16],[103,10,103,13],[103,14,103,16],[100,0,100,9],[161,10,161,13],[161,14,161,16],[156,10,156,13],[149,0,149,9],[149,10,149,13],[149,14,149,16],[138,0,138,9],[138,10,138,13],[138,14,138,16],[139,0,139,9],[142,0,142,9],[142,10,142,13],[139,10,139,13],[139,14,139,16],[140,0,140,9],[140,10,140,13],[140,14,140,16],[141,0,141,9],[141,10,141,13],[148,10,148,13],[148,14,148,16],[159,10,159,13],[159,14,159,16],[150,0,150,9],[197,11,197,13],[199,11,199,13],[194,11,194,13],[94,0,94,9],[94,10,94,13],[158,0,158,9],[158,10,158,13],[158,14,158,16],[159,0,159,9],[98,0,98,9],[98,10,98,13],[124,0,124,9],[124,10,124,13],[156,0,156,9],[156,14,156,16],[157,0,157,9],[134,0,134,9],[134,10,134,13],[135,0,135,9],[135,10,135,13],[135,14,135,16],[134,14,134,16],[157,10,157,13],[157,14,157,16],[183,0,183,7],[183,8,183,10],[183,11,183,13],[186,0,186,7],[186,8,186,10],[190,8,190,10],[189,8,189,10],[187,0,187,7],[189,0,189,7],[189,11,189,13],[188,8,188,10],[173,14,173,16],[174,14,174,16],[187,8,187,10],[180,8,180,10],[181,8,181,10],[178,8,178,10],[179,8,179,10],[184,8,184,10],[180,11,180,13],[181,11,181,13],[178,11,178,13],[179,11,179,13],[184,11,184,13],[185,8,185,10],[177,11,177,13],[177,14,177,16],[137,0,137,9],[137,10,137,13],[137,14,137,16],[160,0,160,9],[160,10,160,13],[160,14,160,16],[161,0,161,9],[66,11,66,13],[59,8,59,10],[59,11,59,13],[59,14,59,16],[60,0,60,7],[60,8,60,10],[60,11,60,13],[60,14,60,16],[65,14,65,16],[66,14,66,16],[65,0,65,7],[65,8,65,10],[62,8,62,10],[63,0,63,7],[63,8,63,10],[63,11,63,13],[61,8,61,10],[40,13,40,16],[40,10,40,11],[43,6,43,11],[62,14,62,16],[57,8,57,10],[57,11,57,13],[58,8,58,10],[58,11,58,13],[48,0,48,16383],[55,8,55,10],[55,11,55,13],[44,13,44,14],[43,12,44,12],[42,13,43,16],[44,15,44,16],[46,0,46,16],[45,1,45,16],[56,0,56,7],[57,0,57,7],[40,1,40,5],[41,1,41,5],[41,14,41,16],[5,6,5,7],[5,8,5,9],[5,10,5,11],[32,8,32,9],[22,6,22,7],[23,6,23,7],[22,8,22,9],[23,8,23,9],[22,10,22,11],[23,10,23,11],[27,6,27,7],[27,10,27,11],[21,10,21,11],[21,6,21,7],[29,6,29,7],[29,8,29,9],[29,10,29,11],[22,1,22,5],[23,1,23,5],[25,1,25,5],[28,10,28,11],[30,10,30,11],[25,6,25,7],[25,8,25,9],[26,8,26,9],[26,10,26,11],[30,6,30,7],[26,6,26,7],[25,10,25,11],[28,8,28,9],[30,8,30,9],[26,1,26,5],[27,1,27,5],[24,8,24,9],[24,10,24,11],[29,1,29,5],[164,0,164,16],[172,0,172,7],[172,8,172,10],[28,1,28,5],[170,11,170,13],[170,14,170,16],[171,0,171,7],[171,8,171,10],[171,11,171,13],[171,14,171,16],[167,0,167,16],[166,0,166,16],[162,0,162,9],[162,10,162,13],[162,14,162,16],[163,14,163,16],[170,0,170,7],[170,8,170,10],[34,6,34,7],[33,8,33,9],[34,8,34,9],[32,10,32,11],[40,6,40,7],[37,0,40,0],[177,0,177,7],[177,8,177,10],[173,8,173,10],[174,8,174,10],[175,8,175,10],[176,8,176,10],[172,11,172,13],[173,11,173,13],[174,11,174,13],[175,11,175,13],[176,11,176,13],[256,1,256,16],[241,0,241,7],[241,8,241,10],[241,11,241,13],[241,14,241,16],[242,14,242,16],[239,0,239,7],[239,8,239,10],[239,11,239,13],[239,14,239,16],[240,0,240,7],[240,8,240,10],[240,11,240,13],[240,14,240,16],[245,0,245,16],[249,0,249,16],[242,11,242,13],[242,8,242,10],[269,0,269,16],[6,6,6,7],[7,6,7,7],[8,6,8,7],[9,6,9,7],[10,6,10,7],[11,6,11,7],[259,1,259,16],[261,1,261,16],[264,1,264,16],[44,6,44,7],[44,8,44,9],[44,10,44,11],[44,1,44,5],[243,0,243,16],[247,0,247,16],[257,1,257,16],[250,0,250,16],[252,1,252,16],[254,1,254,16],[234,14,234,16],[233,0,233,7],[233,8,233,10],[234,0,234,7],[1,0,1,16],[15,8,15,9],[15,10,15,11],[19,8,19,9],[20,8,20,9],[19,10,19,11],[20,10,20,11],[16,10,16,11],[11,10,11,11],[12,8,12,9],[14,8,14,9],[12,10,12,11],[14,10,14,11],[15,6,15,7],[6,0,11,0],[16,6,16,7],[16,8,16,9],[17,6,17,7],[17,8,17,9],[17,10,17,11],[5,13,5,16],[20,6,20,7],[5,1,5,5],[9,8,9,9],[234,11,234,13],[235,0,235,7],[235,8,235,10],[235,11,235,13],[233,14,233,16],[202,8,202,10],[194,8,194,10],[195,0,195,7],[195,8,195,10],[196,0,196,7],[196,8,196,10],[199,0,199,7],[199,8,199,10],[197,8,197,10],[234,8,234,10],[201,0,201,7],[201,8,201,10],[202,0,202,7],[223,14,223,16],[221,0,221,7],[221,8,221,10],[221,11,221,13],[221,14,221,16],[220,11,220,13],[198,8,198,10],[53,0,53,16],[54,0,54,16],[42,1,42,5],[90,0,90,16],[200,0,200,7],[81,10,81,13],[77,0,77,9],[77,10,77,13],[77,14,77,16],[200,8,200,10],[194,0,194,7],[197,0,197,7],[73,0,73,16],[66,0,66,7],[67,0,67,7],[74,10,74,13],[67,11,67,13],[75,10,75,13],[76,0,76,9],[68,11,68,13],[79,14,79,16],[75,14,75,16],[172,14,172,16],[237,0,237,7],[237,8,237,10],[237,11,237,13],[237,14,237,16],[238,0,238,7],[238,8,238,10],[238,11,238,13],[238,14,238,16],[235,14,235,16],[236,0,236,7],[236,8,236,10],[236,11,236,13],[236,14,236,16],[33,10,33,11],[64,0,64,7],[58,0,58,7],[42,6,42,7],[42,8,42,9],[42,10,42,11],[70,0,70,16],[43,1,43,5],[40,8,40,9],[37,10,37,11],[51,0,51,16383],[55,14,55,16],[58,14,58,16],[56,14,56,16],[62,11,62,13],[59,0,59,7],[39,10,39,11],[37,6,37,7],[39,6,39,7],[37,8,37,9],[39,8,39,9],[41,6,41,7],[41,8,41,9],[41,10,41,11],[86,0,86,9],[86,10,86,13],[72,0,72,16],[74,14,74,16],[83,14,83,16],[75,0,75,9],[82,10,82,13],[85,10,85,13],[82,0,82,9],[81,0,81,9],[80,0,80,9],[80,10,80,13],[80,14,80,16],[78,0,78,9],[78,10,78,13],[78,14,78,16],[79,0,79,9],[79,10,79,13],[81,14,81,16],[76,14,76,16],[83,10,83,13],[84,0,84,9],[82,14,82,16],[92,0,92,16],[93,0,93,16],[121,0,121,9],[121,10,121,13],[121,14,121,16],[136,0,136,9],[136,10,136,13],[136,14,136,16],[125,0,125,9],[125,10,125,13],[126,0,126,9],[126,10,126,13],[131,0,131,16],[126,14,126,16],[122,14,122,16],[130,0,130,16],[124,14,124,16],[128,0,128,16],[127,10,127,13],[94,14,94,16],[107,14,107,16],[127,14,127,16],[96,14,96,16],[114,0,114,9],[150,10,150,13],[150,14,150,16],[151,0,151,9],[151,10,151,13],[141,14,141,16],[146,0,146,9],[146,10,146,13],[146,14,146,16],[147,0,147,9],[147,10,147,13],[147,14,147,16],[144,0,144,9],[144,10,144,13],[144,14,144,16],[145,0,145,9],[145,10,145,13],[145,14,145,16],[151,14,151,16],[142,14,142,16],[143,0,143,9],[143,10,143,13],[143,14,143,16],[148,0,148,9],[154,0,154,9],[154,10,154,13],[154,14,154,16],[155,0,155,9],[155,10,155,13],[155,14,155,16],[152,0,152,9],[152,10,152,13],[152,14,152,16],[153,0,153,9],[153,10,153,13],[153,14,153,16],[220,8,220,10],[217,11,217,13],[217,14,217,16],[218,0,218,7],[218,8,218,10],[218,11,218,13],[218,14,218,16],[223,11,223,13],[220,14,220,16],[223,8,223,10],[223,0,223,7],[227,8,227,10],[227,11,227,13],[227,14,227,16],[228,0,228,7],[228,8,228,10],[225,8,225,10],[225,11,225,13],[225,14,225,16],[226,0,226,7],[226,8,226,10],[226,11,226,13],[226,14,226,16],[224,0,224,7],[224,8,224,10],[224,11,224,13],[224,14,224,16],[232,0,232,7],[232,8,232,10],[232,11,232,13],[232,14,232,16],[229,0,229,7],[229,8,229,10],[229,11,229,13],[229,14,229,16],[230,0,230,7],[230,8,230,10],[230,11,230,13],[230,14,230,16],[231,0,231,7],[231,8,231,10],[231,11,231,13],[231,14,231,16],[228,11,228,13],[228,14,228,16],[225,0,225,7],[227,0,227,7],[207,0,207,16],[192,0,192,7],[192,8,192,10],[193,0,193,7],[193,8,193,10],[173,0,173,7],[174,0,174,7],[175,0,175,7],[176,0,176,7],[190,0,190,7],[191,0,191,7],[191,8,191,10],[188,0,188,7],[180,0,180,7],[181,0,181,7],[178,0,178,7],[179,0,179,7],[184,0,184,7],[185,0,185,7],[200,11,200,13],[185,11,185,13],[182,0,182,7],[182,8,182,10],[198,0,198,7],[163,10,163,13],[216,0,216,7],[216,8,216,10],[216,11,216,13],[216,14,216,16],[203,0,203,7],[203,8,203,10],[204,0,204,7],[204,8,204,10],[215,11,215,13],[215,14,215,16],[205,14,205,16],[204,14,204,16],[210,0,210,16],[205,8,205,10],[206,8,206,10],[205,0,205,7],[215,0,215,7],[215,8,215,10],[209,0,209,16],[214,0,214,7],[214,8,214,10],[213,0,213,7],[213,8,213,10],[3,6,3,11],[4,6,4,11],[3,0,4,5],[266,0,266,16],[263,0,263,16],[260,0,260,16],[255,0,255,16],[132,0,132,16],[133,0,133,16],[168,0,168,16],[169,0,169,16],[211,0,211,16],[212,0,212,16],[217,0,217,7],[217,8,217,10],[222,0,222,7],[222,8,222,10],[222,11,222,13],[222,14,222,16],[219,0,219,7],[219,8,219,10],[219,11,219,13],[219,14,219,16],[220,0,220,7]]}
[null,null,null,null,"School Division:",null,{"$f":"Narrative!A17","v":"ALBEMARLE COUNTY PUBLIC SCHOOLS"},null,null,null,null,null,null,"Division Number:",null,null,{"$f":"Narrative!H17","v":2}]
["E.  BUDGET SUMMARY"]
[]
["2019-2020 Allocation",null,null,null,null,null,"Title IV, Part A\nBudget for 2019-2020\nAward S424A190048"]
[null,null,null,null,null,null,{"$f":"Narrative!N48","v":0}]
["Object Code","Expenditure",null,null,null,null,"A.\nWell-Rounded Education",null,"B.\nSafe and Healthy Students",null,"C.\nTechnology",null,"Summary","Does the Budget Summary Match the Detail Budget?"]
["1000 -\n Personal Services","Administration"]
[null,"Teachers"]
[null,"Paraprofessionals"]
[null,"Other"]
[null,"Private School Set-Asides"]
[null,"Total Personal Services",null,null,null,null,{"$f":"SUM(G7:H11)","v":0},null,{"$f":"SUM(I7:J11)","v":0},null,{"$f":"SUM(K7:L11)","v":0},null,{"$f":"SUM(G12:L12)","v":0},{"$f":"IF(SUM(O69)=SUM(G12:L12),\"Yes\", \"No - Please review your entries.\")","v":"Yes"}]
["2000 -\nEmployee Benefits","Fixed Charges (Administrative )"]
[null,"Fixed Charges (Instruction)"]
[null,"Private School Set-Asides"]
[null,"Total Employee Benefits",null,null,null,null,{"$f":"SUM(G13:H15)","v":0},null,{"$f":"SUM(I13:J15)","v":0},null,{"$f":"SUM(K13:L15)","v":0},null,{"$f":"SUM(G16:L16)","v":0},{"$f":"IF(SUM(O88)=SUM(G16:L16),\"Yes\",\"No - Please review your entries.\")","v":"Yes"}]
["3000 - \nPurchased/\nContracted Services","Support Services (Med., Dental)"]
[null,"Evaluation Services"]
[null,"Private School Set-Asides"]
[null,"Professional Development"]
[null,"Other"]
[null,"Total Purchased/Contracted Services",null,null,null,null,{"$f":"SUM(G17:H21)","v":0},null,{"$f":"SUM(I17:J21)","v":0},null,{"$f":"SUM(K17:L21)","v":0},null,{"$f":"SUM(G22:L22)","v":0},{"$f":"IF(SUM(O108)=SUM(G22:L22),\"Yes\",\"No - Please review your entries.\")","v":"Yes"}]
["4000 - \nInternal Services","Pupil Transportation"]
[null,"Food Services"]
[null,"Private School Set-Asides"]
[null,"Other"]
[null,"Total Internal Services",null,null,null,null,{"$f":"SUM(G23:H26)","v":0},null,{"$f":"SUM(I23:J26)","v":0},null,{"$f":"SUM(K23:L26)","v":0},null,{"$f":"SUM(G27:L27)","v":0},{"$f":"IF(SUM(O128)=SUM(G27:L27),\"Yes\",\"No - Please review your entries.\")","v":"Yes"}]
["5000 - \nOther  \nCharges","Travel (Staff/Administrative)"]
[null,"Indirect Cost"]
[null,"Private School Set-Asides"]
[null,"Other"]
[null,"Total Other Charges",null,null,null,null,{"$f":"SUM(G28:H31)","v":0},null,{"$f":"SUM(I28:J31)","v":0},null,{"$f":"SUM(K28:L31)","v":0},null,{"$f":"SUM(G32:L32)","v":0},{"$f":"IF(SUM(O164)=SUM(G32:L32),\"Yes\",\"No - Please review your entries.\")","v":"Yes"}]
["6000 - \nMaterials\nand Supplies","Administrative"]
[null,"Instructional"]
[null,"Private School Set-Asides"]
[null,"Other"]
[null,"Total Materials and Supplies",null,null,null,null,{"$f":"SUM(G33:H36)","v":0},null,{"$f":"SUM(I33:J36)","v":0},null,{"$f":"SUM(K33:L36)","v":0},null,{"$f":"SUM(G37:L37)","v":0},{"$f":"IF(SUM(O207)=SUM(G37:L37),\"Yes\",\"No - Please review your entries.\")","v":"Yes"}]
["8000 - \nCapital\nOutlay","Equipment for Instruction"]
[null,"Professional Development"]
[null,"All Other Equipment"]
[null,"Total Capital Outlay",null,null,null,null,{"$f":"SUM(G38:H40)","v":0},null,{"$f":"SUM(I38:J40)","v":0},null,{"$f":"SUM(K38:L40)","v":0},null,{"$f":"SUM(G41:L41)","v":0},{"$f":"IF(SUM(O243)=SUM(G41:L41),\"Yes\",\"No - Please review your entries.\")","v":"Yes"}]
[null,"TOTAL SUBGRANT BUDGET",null,null,null,null,{"$f":"SUM(G41,G37,G32,G27,G22,G16,G12)","v":0},null,{"$f":"SUM(I41,I37,I32,I27,I22,I16,I12)","v":0},null,{"$f":"SUM(K41,K37,K32,K27,K22,K16,K12)","v":0},null,{"$f":"SUM(G42:L42)","v":0},{"$f":"K42*0.15","v":0},"* *Reflects 15% max allowed for technology, equipment, devices, and software in Technology area."]
[null,"TOTAL PRIVATE SCHOOL SET-ASIDE SUBGRANT BUDGET",null,null,null,null,{"$f":"SUM(G11+G15+G19+G25+G30+G35)","v":0},null,{"$f":"SUM(I11+I15+I19+I25+I30+I35)","v":0},null,{"$f":"SUM(K11+K15+K19+K25+K30+K35)","v":0},null,{"$f":"SUM(G43:L43)","v":0}]
[null,"Is the allocation $30,000 or greater? If \"yes\", mandatory distribution of allocation applies.",null,null,null,null,{"$f":"IF(Narrative!N48>=30000,\"Yes\",\"No - Grant is not subject to minimum requirements\")","v":"No - Grant is not subject to minimum requirements"}]
[null,"If allocation is $30,000 or greater, does the allocation meet minimum requirement for each area?",null,null,null,null,{"$f":"IF(OR(SUM(G42)>=SUM(Narrative!N48*0.2), SUM(Narrative!N48)<30000), \"Requirement Met\", \"Requirement Not Met- Redistribute Funds\")","v":"Requirement Met"},null,{"$f":"IF(OR(SUM(I42)>=SUM(Narrative!N48*0.2), SUM(Narrative!N48)<30000), \"Requirement Met\", \"Requirement Not Met- Redistribute Funds\")","v":"Requirement Met"},null,{"$f":"IF(OR(SUM(K42)>0), \"Requirement Met\", \"Requirement Not Met- Redistribute Funds\")","v":"Requirement Not Met- Redistribute Funds"},null,null,"Does Total Allocation Match Detailed Budget?",null,{"$f":"IF(SUM(M42)=SUM(G5),\"Yes\",\"No - Please review your entries.\")","v":"Yes"}]
[null,"Note:  Object codes 7000 and 9000 are not used in application budgets or in requests for reimbursements for this grant."]
["Page 13"]
[null,null,null,null,"School Division:",null,{"$f":"G1","v":"ALBEMARLE COUNTY PUBLIC SCHOOLS"},null,null,null,null,null,null,"Division Number:",null,null,{"$f":"Narrative!H17","v":2}]
["F.  DETAILED BUDGET BREAKDOWN"]
["Include a detailed breakdown of the budget categories for Object Codes 1000-6000 and 8000, as shown on page 13."]
[]
["DETAILED BUDGET DESCRIPTION OF OBJECT CODE 1000"]
["If applicable, indicate the positions and FTEs supported with funds from this program."]
[]
[]
["Item Description",null,null,null,null,null,null,null,"Supported Area/Activity",null,null,"FTEs",null,null,"Total Cost"]
[]
[]
[]
[]
[]
[]
[]
[]
[]
[]
[]
[]
[null,null,null,null,"      ",null,null,null,"Total for Object Code:",null,null,{"$f":"SUM(L57:N68)","v":0},null,null,{"$f":"SUM(O57:Q68)","v":0}]
[]
["DETAILED BUDGET DESCRIPTION OF OBJECT CODE 2000"]
["Indicate the fixed charge categories (such as FICA, health, etc.) and specify the amount of each."]
[]
[]
["Item Description",null,null,null,null,null,null,null,null,null,"Supported Area/Activity",null,null,null,"Total Cost"]
[]
[]
[]
[]
[]
[]
[]
[]
[]
[]
[]
[]
[null,null,null,null,"      ",null,null,null,null,null,"Total for Object Code:",null,null,null,{"$f":"SUM(O76:Q87)","v":0}]
["Page 14"]
[null,null,null,null,"School Division:",null,{"$f":"G1","v":"ALBEMARLE COUNTY PUBLIC SCHOOLS"},null,null,null,null,null,null,"Division Number:",null,null,{"$f":"Q1","v":2}]
["JUSTIFICATION FOR PROFESSIONAL DEVELOPMENT - OBJECT CODE 3000"]
["Please indicate how these funds will support any services and activities that are described in this application.  If program funds are expended for professional development, justify such expenditures by demonstrating a relationship between the proposed expenditure for professional development and the program services and activities described in the application. "]
[]
[]
["Item Description",null,null,null,null,null,null,null,null,null,"Supported Area/Activity",null,null,null,"Total Cost"]
[]
[]
[]
[]
[]
[]
[]
[]
[]
[]
[]
[]
[null,null,null,null,"      ",null,null,null,null,null,"Total for Object Code:",null,null,null,{"$f":"SUM(O96:Q107)","v":0}]
[]
[]
["JUSTIFICATION FOR INTERNAL SERVICES - OBJECT CODE 4000"]
["If program funds are expended for internal services, describe these services below."]
[]
[]
["Item Description",null,null,null,null,null,null,null,null,null,"Supported Area/Activity",null,null,null,"Total Cost"]
[]
[]
[]
[]
[]
[]
[]
[]
[]
[]
[]
[]
[null,null,null,null,"      ",null,null,null,null,null,"Total for Object Code:",null,null,null,{"$f":"SUM(O116:Q127)","v":0}]
["Page 15"]
[null,null,null,null,"School Division:",null,{"$f":"G1","v":"ALBEMARLE COUNTY PUBLIC SCHOOLS"},null,null,null,null,null,null,"Division Number:",null,null,{"$f":"Q1","v":2}]
["JUSTIFICATION FOR TRAVEL COSTS - OBJECT CODE 5000"]
["Travel must be justified by demonstrating a relationship between the proposed travel and the needs of the program.  Please indicate the estimated cost and the estimated number of people attending.  If applicable, indicate indirect costs charged to this program.  Indirect costs cannot be claimed against capital outlay and equipment."]
[]
[]
["Item Description",null,null,null,null,null,null,null,null,null,"Supported Area/Activity",null,null,null,"Total Cost"]
[]
[]
[]
[]
[]
[]
[]
[]
[]
[]
[]
[]
[]
[]
[]
[]
[]
[]
[]
[]
[]
[]
[]
[]
[]
[]
[]
[]
[null,null,null,null,"      ",null,null,null,null,null,"Total for Object Code:",null,null,null,{"$f":"SUM(O136:Q163)","v":0}]
["Page 16"]
[null,null,null,null,"School Division:",null,{"$f":"G1","v":"ALBEMARLE COUNTY PUBLIC SCHOOLS"},null,null,null,null,null,null,"Division Number:",null,null,{"$f":"Narrative!H17","v":2}]
["JUSTIFICATION FOR MATERIALS AND SUPPLIES - OBJECT CODE 6000"]
["Provide a description of materials, supplies, and all equipment less $5,000 per unit.  Indicate the estimated quantity of each item.  Please describe any technology infrastructure included in the budget.  \n\nNOTE:  LEAs may not spend more than 15 percent of the funds allocated to the effective use of technology category to purchase equipment, devices, software, platforms, digital instructional resources, or other one-time IT purchases."]
[]
[]
["Item Description",null,null,null,null,null,null,null,"Supported Area/Activity",null,null,"Quantities",null,null,"Total Cost"]
[]
[]
[]
[]
[]
[]
[]
[]
[]
[]
[]
[]
[]
[]
[]
[]
[]
[]
[]
[]
[]
[]
[]
[]
[]
[]
[]
[]
[]
[]
[]
[]
[]
[]
[]
[null,null,null,null,"      ",null,null,null,"Total for Object Code:",null,null,{"$f":"SUM(L172:N206)","v":0},null,null,{"$f":"SUM(O172:Q206)","v":0}]
["Page 17"]
[null,null,null,null,"School Division:",null,{"$f":"G1","v":"ALBEMARLE COUNTY PUBLIC SCHOOLS"},null,null,null,null,null,null,"Division Number:",null,null,{"$f":"Narrative!H17","v":2}]
["JUSTIFICATION FOR CAPITAL OUTLAY - OBJECT CODE 8000"]
["All capital outlay expenditures over $5,000 per unit must be approved in advance by the Virginia Department of Education. If the school division has established a threshold of a lesser amount, items equal to that amount or greater must also receive prior approval by the Virginia Department of Education.  Nonconsumable items must be listed in the application.  Equipment quantities must be specified. "]
[]
[]
["Item Description",null,null,null,null,null,null,null,"Supported Area/Activity",null,null,"Quantities",null,null,"Total Cost"]
[]
[]
[]
[]
[]
[]
[]
[]
[]
[]
[]
[]
[]
[]
[]
[]
[]
[]
[]
[]
[]
[]
[]
[]
[]
[]
[]
[]
[null,null,null,null,"      ",null,null,null,"Total for Object Code:",null,null,{"$f":"SUM(L215:N242)","v":0},null,null,{"$f":"SUM(O215:Q242)","v":0}]
["Page 18"]
[null,null,null,null,"School Division:",null,null,null,null,null,null,null,null,"Division Number:",null,null,{"$f":"Narrative!H17","v":2}]
["EXPENDITURE ACCOUNTS DESCRIPTIONS"]
[]
["These accounts are for budgeting and recording expenditures of the educational agency for activities under its control.  Below are definitions of the major expenditure categories.  The descriptions provided are examples only.   For further clarification on the proper expenditures of funds, contact your school division budget or finance office, the grant specialist in the Virginia Department of Education, or refer to the appropriate federal act."]
[]
["OBJECT CODE DEFINITIONS:"]
["(revised 5/16/17)"]
[]
[1000,"PERSONAL SERVICES - Includes all compensation for the direct labor of persons in the employment of the local government.  Salaries and wages paid to employees for full‐ and part‐time work, including overtime, shift differential, and similar compensation. Includes payments for time not worked, including sick leave, vacation, holidays, jury duty, military leave, and other paid absences that are earned during the reporting period.  \n\nFor the purposes of this report, the term “salaries” means all compensation including base wage.  This also includes amounts paid through salary reduction plans, such as tax‐sheltered annuities and flexible benefit plans.  Do not confuse this definition with the Virginia Retirement System (VRS) definition, which excludes supplements for retirement calculation purposes in some circumstances.\n"]
[]
[2000,"EMPLOYEE BENEFITS - Job related benefits provided to employees as part of their total compensation.  Fringe benefits include the employer’s portion of FICA, pensions, insurance (life, health, disability income, etc.) and employee allowances.  \n\nNOTE:  Fringe Benefits are a significant component of employee compensation and, like salaries and wages, are charged to the appropriate object of expenditure within each program.  If possible, fringe benefit costs should be charged to the applicable educational program or activity on an ongoing basis.  An alternative is to charge all fringe benefits to various benefit accounts.  As part of the year‐end closing process, these accounts are closed, and all costs are allocated to the appropriate educational program or activity.  The following methods are suggested for allocating such cost at year‐end.  If these methods do not provide reasonable allocations based on circumstances within the school division, then the school division should use another reasonable allocation method.  Consistency in application should be maintained at all times.\n\n• Allocation by percentage of payroll dollars\n• Allocation by Head Count\n• Direct to Program or Activity\n"]
["Page 19"]
[3000,"PURCHASED/CONTRACTUAL SERVICES - Services acquired from outside sources (i.e., private vendors, public authorities, or other governmental entities).  Purchase of the service is on a fee basis or fixed time contract basis.  Payments for rentals and utilities are not included in this account description.  Allowable payments would be to individual or firms that are independent contractors and not employees of the grantee or sub‐grantee organization.  The word honorarium is sometimes used to characterize such payments; the term “fee” is preferred.\n\n• Food Purchases – Prepared meals, working meals, and/or catered services purchased through a vendor are included in this object code.  Reimbursement is capped at the per diem rate for the meal listed according to the state travel regulations.  Examples for this object code include meals provided during day‐long professional development sessions, or meals provided to support attendance at family engagement activities.  Food purchased from catering services and restaurants such as Pizza Hut, Panera Bread, and Subway is included in this object code.\n\n• Transportation Services Public Carriers – Payments to public carriers for transportation of pupils on vehicles that are used by the public. Include payments for pupils transported in intra‐city transit buses, taxicabs, airplanes, and intercity/interstate passenger buses.\n\n• Transportation Services Private Carriers – Payments (either cash or tokens) to parents for transportation of pupils in lieu of providing transportation on school buses. Include allowable payments to parents for pupils attending public, private, and non‐sectarian schools. Include costs associated with transporting special education students in school board‐owned vehicles to and from school.\n\n• Transportation Services by Contract – Payments to private owners of school buses who contract with the school board to transport pupils to and from public schools. Include payments to owners of private vehicles that contract with the school board to transport pupils to and from designated public and private schools.\n\n"]
[null,"• Purchase of Service from Other Governmental Entities – Payments for services purchased from other governmental entities (i.e., other local governments, public authorities, state agencies, and other LEAs) on a contract/fee basis. Tuition payments to other local governments for a jointly operated center are not included here but are reported under “Payments to Joint Operations” (object code 7000).\n\n• Tuition Paid – Other Divisions In‐State, Tuition Paid – Other Divisions Out‐of‐State, and Tuition Paid – Private Schools are included in this object code.\n"]
[]
[4000,"INTERNAL SERVICES - Charges from an Internal Service Fund to other functions/activities/elements of the local government for the use of intergovernmental services, such as data processing, automotive/motor pool, central purchasing/central stores, print shop, and risk management. These services are provided by internal services within the School District and possibly the county but not a vendor.  \n\n• Food Purchases – Food purchased from the food services department of a school division or subgrantee equivalent to support professional development or family engagement events is included in this object code.  For example, internal expenses for school cafeterias to provide meals to support attendance at family engagement activities are included in this object code.\n"]
["Page 20"]
[5000,"OTHER CHARGES - Include expenditures that support the use of programs. Includes expenditures that support the program, including utilities (maintenance and operation of plant), staff/administrative/consultant travel, office phone charges, training, leases/rental, indirect cost, and other.\n\n• Food Purchases – Food Purchases under this object code are restricted to food purchases related to travel reimbursement for meals only (see Travel below). If the sub‐recipient’s internal travel policies conform to state travel regulations, reimbursement is allowable at per diem meals rates according to state travel regulations. If the sub‐recipient’s internal travel policies require reimbursement for the cost of each meal, reimbursement is capped at the per diem rate for the meal listed according to the state travel regulations. Sub‐recipients must elect either meals per diem or per meals costs as their internal travel policy.\n\n• Telecommunications – Include expenditures for recurring telecommunications services for the use of on‐line computer technology (e.g., telephone/telecommunications line charges).  Telephone charges for line service for Internet connectivity and the Electronic Classroom program.\n\n• Utilities – Payments for heat, electricity, water, and sewer services regardless of whether the service is provided by a private enterprise authority or an enterprise fund operated by a local government.\n\n• Communications – Payments for postal, messenger, and telecommunications services, typically office voice telephone charges.  (Telecommunication costs directly related to technology uses should be coded under 6000.) In addition, office telephone charges would be coded under this code.\n\n• Insurance – Payments for insurance except those that relate to personal services (i.e., hospitalization, group life, worker’s compensation, unemployment)\n\n• Leases and Rentals – Includes payments for leases that are not capitalized and rental of land, structures, and equipment. Do not include payments made under a lease‐purchase agreement.\n\n"]
[null,"• Travel – includes payments for travel reimbursement for staff/administrative/consultant travel. These are travel costs that are being reimbursed directly to travelers.  These costs may include lodging, mileage, meals, and incidentals as allowable according to state travel regulations or documented subrecipient internal travel policies. If the sub‐recipient does not have documented internal travel policies, state travel regulations will prevail.\n\n• Contributions to Other Entities – Includes payments to other governmental entities or community organizations that are not related to the direct purchase of a service on a fee basis (which is reported under object code 3000) or payments to joint operations (which are reflected under object code 7000).\n\n• Public Assistance Payments – Payments to individuals for public assistance programs (general government use only).\n\n• Miscellaneous Other Charges – Includes expenditures that support the program, including indirect costs and other costs.\n"]
["Page 21"]
[6000,"MATERIALS AND SUPPLIES - Includes articles and commodities that are consumed or materially altered when used and minor equipment that is not capitalized.  This includes any equipment purchased under $5,000, unless the LEA has set a lower capitalization threshold.  Therefore, computer equipment under $5,000 would be reported in “materials and supplies.”\n\n• Food Purchases – Food items purchased from a grocery store or its equivalent for snacks or breaks is included in this object code.  Examples include bottled water, granola bars, cookies, and fruit purchased from a store such as Wal‐Mart, Food Lion, Costco, etc.  Prepared meals is not included in this object code; see object code 3000 for prepared/working/catered meals as purchased/contracted services.\n\n• Vehicle and Powered Equipment Fuels – Gasoline, lubricating oils, or such other fuel used in the operation of vehicles and powered equipment (e.g., lawnmowers) purchased from private sources or governmental agencies.\n\n• Vehicle and Powered Equipment Supplies – Tires, spark plugs, batteries, and chains used in the operation of vehicles and powered equipment purchased from private sources or governmental agencies.\n\n• Textbooks – All textbooks and workbooks purchased to be used in the classroom.\n\n• Instructional Materials – Books (not textbooks) and other materials.\n\n"]
[null,"• Technology Software/On‐line Content – Include expenditures for videodiscs and computer programs used in the classroom for instructional purposes, operating system software (i.e., standalone software, not software that is pre‐installed and included in hardware costs), application software, and on‐line or downloadable software and content. Include expenditures for both additions and replacement.\n\n• Non‐Capitalized Technology Hardware – Include expenditures for hardware or classroom technology equipment that is not capitalized.\n\n• Non‐Capitalized Technology Infrastructure – Include expenditures for technology infrastructure that is not capitalized.\n"]
["Page 22"]
[8000,"CAPITAL OUTLAY - Note: Indirect cost cannot be claimed against capital outlay and equipment.\nOutlays that result in the acquisition of or additions to fixed assets.  Capital Outlay includes the purchase\nof fixed assets both replacement and/or additional.\n\nCapital Outlay Replacement\n\n• Technology – Hardware Replacements – Include capital outlay for replacement of hardware or classroom technology equipment. (For further clarification on which expenditures should be included in this object code, see the “Special Note” below.)\n\n• Technology – Infrastructure Replacements – Include capital outlay for replacement of technology infrastructure. (For further clarification on which expenditures should be included in this object code, see the “Special Note” below.)\n\n• Capital Outlay Additions – Include machinery, equipment, furniture, fixtures, communications equipment, motor vehicles, etc. that are capitalized.\n\n• Technology – Hardware Additions – Include capital outlay for additional hardware or classroom technology equipment. (For further clarification on which expenditures should be included in this object code, see the “Special Note” below.)  \n\n• Technology – Infrastructure Additions – Include capital outlay for additional technology infrastructure. (For further clarification on which expenditures should be included in this object code, see the “Special Note” below.)\n\n"]
[null,"• Special Note ‐ Classification of Hardware and Infrastructure Expenditures: \n\nReport expenditures under technology “hardware” for computers, associated peripheral equipment, and other specialized technology equipment. Computers include desktop and laptop machines, handheld computers (i.e., Personal Digital Assistants or PDAs), and mainframe machines. Peripheral equipment includes devices attached to computers, such as monitors, keyboards, disk drives, modems, printers, scanners, cameras and speakers, etc.\n\nReport other specialized computer devices under technology “hardware” such as fax‐back and voicemail resources; videoconferencing and other distance education tools, including satellite transmitters and receivers; cable‐based receivers; and modem or codec‐based video equipment; projection devices, from transparent and opaque projectors to video monitors; and graphing calculators and other specialized computational aids.\n\nReport expenditures under technology “infrastructure” for equipment and devices that enable the linking of computers or video hardware to networks (such as routers, hubs, switches, access servers, modems, or codecs). Infrastructure also refers to cabling installations, whether wire, fiber optic, or coaxial, as well as electrical capacity expansion or HVAC upgrades to support networks. In wireless networking systems, include receivers and transmitters under infrastructure.\n"]
["Page 23"]
[]
[null,null,null,"Well Rounded Students"]
[null,null,null,"Safe and Healthy Students"]
[null,null,null,"Technology"]

{"sheet":"Transferability","index":2,"n_rows":188,"n_cols":15,"rows_kept":188,"cut":false,"hidden":false,"merged":[[182,0,182,6],[182,7,182,10],[182,12,182,14],[183,8,183,10],[183,12,183,14],[22,0,22,2],[187,0,187,14],[185,0,185,14],[186,0,186,14],[179,0,179,6],[179,7,179,10],[179,12,179,14],[180,0,180,6],[180,7,180,10],[180,12,180,14],[181,0,181,6],[181,7,181,10],[181,12,181,14],[176,0,176,6],[176,7,176,10],[176,12,176,14],[177,0,177,6],[177,7,177,10],[177,12,177,14],[178,0,178,6],[178,7,178,10],[178,12,178,14],[173,0,173,6],[173,7,173,10],[173,12,173,14],[174,0,174,6],[174,7,174,10],[174,12,174,14],[175,0,175,6],[175,7,175,10],[175,12,175,14],[165,8,165,10],[165,12,165,14],[169,0,169,14],[172,0,172,6],[172,7,172,10],[172,12,172,14],[170,0,170,14],[171,0,171,14],[166,0,166,14],[162,0,162,6],[162,7,162,10],[162,12,162,14],[163,0,163,6],[163,7,163,10],[163,12,163,14],[164,0,164,6],[164,7,164,10],[164,12,164,14],[159,0,159,6],[159,7,159,10],[159,12,159,14],[160,0,160,6],[160,7,160,10],[160,12,160,14],[161,0,161,6],[161,7,161,10],[161,12,161,14],[156,0,156,6],[156,7,156,10],[156,12,156,14],[157,0,157,6],[157,7,157,10],[157,12,157,14],[158,0,158,6],[158,7,158,10],[158,12,158,14],[148,12,148,14],[148,10,148,11],[151,0,151,14],[152,0,152,14],[153,0,153,14],[154,0,154,6],[154,7,154,10],[154,12,154,14],[155,0,155,6],[155,7,155,10],[155,12,155,14],[145,0,145,8],[145,9,145,11],[145,12,145,14],[146,0,146,8],[146,9,146,11],[146,12,146,14],[147,0,147,8],[147,9,147,11],[147,12,147,14],[142,0,142,8],[142,9,142,11],[142,12,142,14],[143,0,143,8],[143,9,143,11],[143,12,143,14],[144,0,144,8],[144,9,144,11],[144,12,144,14],[139,0,139,8],[139,9,139,11],[139,12,139,14],[140,0,140,8],[140,9,140,11],[140,12,140,14],[141,0,141,8],[141,9,141,11],[141,12,141,14],[134,0,134,14],[137,0,137,8],[137,9,137,11],[137,12,137,14],[135,0,135,14],[136,0,136,14],[127,10,127,11],[138,0,138,8],[138,9,138,11],[138,12,138,14],[129,0,129,14],[127,12,127,14],[120,0,120,8],[120,9,120,11],[120,12,120,14],[121,0,121,8],[121,9,121,11],[121,12,121,14],[126,0,126,8],[126,9,126,11],[126,12,126,14],[122,0,122,8],[122,9,122,11],[122,12,122,14],[123,0,123,8],[123,9,123,11],[123,12,123,14],[124,0,124,8],[124,9,124,11],[124,12,124,14],[125,0,125,8],[125,9,125,11],[125,12,125,14],[117,0,117,8],[117,9,117,11],[117,12,117,14],[113,0,113,14],[118,0,118,8],[118,9,118,11],[118,12,118,14],[119,0,119,8],[119,9,119,11],[119,12,119,14],[111,12,111,14],[111,10,111,11],[116,0,116,8],[116,9,116,11],[116,12,116,14],[114,0,114,14],[115,0,115,14],[108,0,108,8],[108,9,108,11],[108,12,108,14],[109,0,109,8],[109,9,109,11],[109,12,109,14],[110,0,110,8],[110,9,110,11],[110,12,110,14],[105,0,105,8],[105,9,105,11],[105,12,105,14],[106,0,106,8],[106,9,106,11],[106,12,106,14],[107,0,107,8],[107,9,107,11],[107,12,107,14],[102,0,102,8],[102,9,102,11],[102,12,102,14],[103,0,103,8],[103,9,103,11],[103,12,103,14],[104,0,104,8],[104,9,104,11],[104,12,104,14],[99,0,99,14],[100,0,100,8],[100,9,100,11],[100,12,100,14],[93,10,93,11],[94,0,94,14],[101,0,101,8],[101,9,101,11],[101,12,101,14],[91,0,91,8],[91,9,91,11],[91,12,91,14],[92,0,92,8],[92,9,92,11],[92,12,92,14],[93,12,93,14],[97,0,97,14],[98,0,98,14],[83,0,83,8],[83,9,83,11],[83,12,83,14],[89,0,89,8],[89,9,89,11],[89,12,89,14],[90,0,90,8],[90,9,90,11],[90,12,90,14],[84,0,84,8],[84,9,84,11],[84,12,84,14],[85,0,85,8],[85,9,85,11],[85,12,85,14],[88,0,88,8],[88,9,88,11],[88,12,88,14],[86,0,86,8],[86,9,86,11],[86,12,86,14],[87,0,87,8],[87,9,87,11],[87,12,87,14],[70,0,70,6],[70,7,70,10],[70,12,70,14],[72,0,72,6],[72,7,72,10],[72,12,72,14],[73,0,73,6],[73,7,73,10],[73,12,73,14],[71,0,71,6],[71,7,71,10],[71,12,71,14],[67,0,67,6],[67,7,67,10],[67,12,67,14],[68,0,68,6],[68,7,68,10],[68,12,68,14],[69,0,69,6],[69,7,69,10],[69,12,69,14],[61,0,61,14],[65,0,65,6],[65,7,65,10],[65,12,65,14],[63,0,63,14],[64,0,64,14],[52,0,52,2],[66,0,66,6],[66,7,66,10],[66,12,66,14],[48,0,48,2],[49,0,49,2],[53,0,53,2],[54,0,54,2],[55,0,55,2],[56,0,56,2],[57,0,57,2],[59,0,59,14],[46,0,46,2],[50,0,50,2],[51,0,51,2],[44,0,44,2],[45,0,45,2],[36,0,36,2],[40,0,40,2],[47,0,47,2],[37,0,37,2],[34,0,34,2],[35,0,35,2],[43,0,43,2],[39,0,39,2],[38,0,38,2],[42,0,42,2],[41,0,41,2],[30,0,30,2],[28,0,28,2],[29,0,29,2],[32,0,32,2],[33,0,33,2],[31,0,31,2],[24,0,24,2],[23,0,23,2],[26,0,26,2],[27,0,27,2],[25,0,25,2],[17,0,17,2],[21,0,21,2],[18,0,18,2],[19,0,19,2],[20,0,20,2],[14,0,14,2],[15,0,15,2],[16,0,16,2],[11,0,11,2],[1,0,1,14],[3,0,3,14],[8,3,8,14],[9,10,9,11],[13,0,13,2],[12,0,12,2],[5,0,5,11],[6,0,6,16383],[9,13,9,14],[9,7,9,8],[9,5,9,6],[9,3,9,4],[74,0,74,6],[74,7,74,10],[74,12,74,14],[75,0,75,6],[75,7,75,10],[75,12,75,14],[76,8,76,10],[76,12,76,14],[82,0,82,8],[82,9,82,11],[82,12,82,14],[80,0,80,14],[81,0,81,14]]}
[null,null,null,null,"School Division:",null,{"$f":"Narrative!A17","v":"ALBEMARLE COUNTY PUBLIC SCHOOLS"},null,null,null,null,null,"Division Number:",null,{"$f":"Narrative!$H$17","v":2}]
["G.  TRANSFERABILITY"]
[]
["Section 5103(b)(2) of ESSA allows divisions to transfer all or a portion of the funds received from Title II, Part A, or Title IV, Part A, into: Title I, Part A; Title I, Part C; Title I, Part D; Title II, Part A; Title III, Part A; Title IV, Part A; or Title V, Part B.  "]
[]
["Complete the tab below if funds will be transferred under Section 5103(b)(2). Please note that prior approval is required to transfer funds. The transfer request form is provided at "]
["Transfer Request Form"]
[]
[null,null,null,"Amount Budgeted"]
[null,null,null,"Title I, Part A",null,"Title I, Part C",null,"Title I, Part D",null,"Title II, Part A","Title III, Part A",null,"Title IV, Part A","Title V, Part B"]
[null,null,null,"Title II, Part A, Transferability","Title IV, Part A, Transferability","Title II, Part A, Transferability","Title IV, Part A, Transferability","Title II, Part A, Transferability","Title IV, Part A, Transferability","Title IV, Part A, Transferability","Title II, Part A, Transferability","Title IV, Part A, Transferability","Title II, Part A, Transferability\nAward S367A190044\nProject Code APE60022\n","Title II, Part A, Transferability","Title IV, Part A, Transferability"]
["Amount Transferred to Program",null,null,null,null,null,null,null,null,null,null,null,{"$f":"Narrative!M60","v":0}]
["OBJECT CODE - EXPENDITURE TYPE"]
["1000 -  Personal Services"]
["Administration",null,null,null,null,null,null,null,null,null,null,null,0]
["Teachers",null,null,null,null,null,null,null,null,null,null,null,0]
["Paraprofessionals",null,null,null,null,null,null,null,null,null,null,null,0]
["Private School Set-Aside ",null,null,null,null,null,null,null,null,null,null,null,0]
["Other",null,null,null,null,null,null,null,null,null,null,null,0]
["Total Personal Services",null,null,null,null,null,null,null,null,null,null,null,{"$f":"SUM(M15:M19)","v":0}]
["2000 - Employee Benefits"]
["Fixed Charges (Administrative)",null,null,null,null,null,null,null,null,null,null,null,0]
["Fixed Charges (Instruction)",null,null,null,null,null,null,null,null,null,null,null,0]
["Private School Set-Aside ",null,null,null,null,null,null,null,null,null,null,null,0]
["Total Employee Benefits",null,null,null,null,null,null,null,null,null,null,null,{"$f":"SUM(M22:M24)","v":0}]
["3000 - Purchased/Contracted Services"]
["Support Services (Med., Dental)",null,null,null,null,null,null,null,null,null,null,null,0]
["Evaluation Services",null,null,null,null,null,null,null,null,null,null,null,0]
["Private School Set-Aside ",null,null,null,null,null,null,null,null,null,null,null,0]
["Professional Development",null,null,null,null,null,null,null,null,null,null,null,0]
["Other",null,null,null,null,null,null,null,null,null,null,null,0]
["Total Purchased/Contracted Services",null,null,null,null,null,null,null,null,null,null,null,{"$f":"SUM(M27:M31)","v":0}]
["4000 - Internal Services"]
["Pupil Transportation",null,null,null,null,null,null,null,null,null,null,null,0]
["Food Services",null,null,null,null,null,null,null,null,null,null,null,0]
["Private School Set-Aside ",null,null,null,null,null,null,null,null,null,null,null,0]
["Other",null,null,null,null,null,null,null,null,null,null,null,0]
["Total Internal Services",null,null,null,null,null,null,null,null,null,null,null,{"$f":"SUM(M34:M37)","v":0}]
["5000 - Other Charges"]
["Travel (Staff/Administrative)",null,null,null,null,null,null,null,null,null,null,null,0]
["Indirect Cost",null,null,null,null,null,null,null,null,null,null,null,0]
["Private School Set-Aside ",null,null,null,null,null,null,null,null,null,null,null,0]
["Other",null,null,null,null,null,null,null,null,null,null,null,0]
["Total Other Charges",null,null,null,null,null,null,null,null,null,null,null,{"$f":"SUM(M40:M43)","v":0}]
["6000 - Materials and Supplies"]
["Administrative",null,null,null,null,null,null,null,null,null,null,null,0]
["Instructional",null,null,null,null,null,null,null,null,null,null,null,0]
["Private School Set-Aside ",null,null,null,null,null,null,null,null,null,null,null,0]
["Other",null,null,null,null,null,null,null,null,null,null,null,0]
["Total Materials and Supplies",null,null,null,null,null,null,null,null,null,null,null,{"$f":"SUM(M46:M49)","v":0}]
["8000 - Capital Outlay"]
["Equipment for Instruction",null,null,null,null,null,null,null,null,null,null,null,0]
["Professional Development",null,null,null,null,null,null,null,null,null,null,null,0]
["All Other Equipment",null,null,null,null,null,null,null,null,null,null,null,0]
["Total Capital Outlay",null,null,null,null,null,null,null,null,null,null,null,{"$f":"SUM(M52:M54)","v":0}]
["Total Budget",null,null,null,null,null,null,null,null,null,null,null,{"$f":"SUM(M20,M25,M32,M38,M44,M50,M55)","v":0}]
["Total Private School Set-Aside",null,null,null,null,null,null,null,null,null,null,null,{"$f":"SUM(M18,M24,M29,M36,M42,M48)","v":0}]
["Does the Total Budget Match the Amount Transferred into Program?",null,null,null,null,null,null,null,null,null,null,null,{"$f":"IF(M56=M12,\"Yes\",\"No\")","v":"Yes"}]
[]
["Page 24"]
[null,null,null,null,"School Division:",null,{"$f":"Narrative!A17","v":"ALBEMARLE COUNTY PUBLIC SCHOOLS"},null,null,null,null,null,"Division Number:",null,{"$f":"Narrative!$H$17","v":2}]
["DETAILED BUDGET DESCRIPTION OF OBJECT CODE 1000"]
["If applicable, indicate the positions and FTEs supported with funds from this program."]
[]
[]
["Item Description",null,null,null,null,null,null,"Funding Source",null,null,null,"FTEs","Total Cost"]
[]
[]
[]
[]
[]
[]
[]
[]
[]
[]
[null,null,null,null,"      ",null,null,null,"Total for Object Code:",null,null,{"$f":"SUM(L67:L76)","v":0},{"$f":"SUM(M67:O76)","v":0}]
[]
["DETAILED BUDGET DESCRIPTION OF OBJECT CODE 2000"]
["Indicate the fixed charge categories (such as FICA, health insurance, etc.) and specify the amount of each."]
[]
[]
["Item Description",null,null,null,null,null,null,null,null,"Funding Source",null,null,"Total Cost"]
[]
[]
[]
[]
[]
[]
[]
[]
[]
[]
[null,null,null,null,"      ",null,null,null,null,null,"Total for Object Code:",null,{"$f":"SUM(M84:O93)","v":0}]
["Page 25"]
[null,null,null,null,"School Division:",null,{"$f":"Narrative!A17","v":"ALBEMARLE COUNTY PUBLIC SCHOOLS"},null,null,null,null,null,"Division Number:",null,{"$f":"Narrative!$H$17","v":2}]
["JUSTIFICATION FOR PROFESSIONAL DEVELOPMENT - OBJECT CODE 3000"]
["If program funds are expended for professional development, justify such expenditures by demonstrating a relationship between the proposed expenditure for professional development and the program services and activities described in the application. Please indicate how these funds will support any services and activities that are described in this application."]
[]
[]
["Item Description",null,null,null,null,null,null,null,null,"Funding Source",null,null,"Total Cost"]
[]
[]
[]
[]
[]
[]
[]
[]
[]
[]
[null,null,null,null,"      ",null,null,null,null,null,"Total for Object Code:",null,{"$f":"SUM(M102:O111)","v":0}]
["JUSTIFICATION FOR INTERNAL SERVICES - OBJECT CODE 4000"]
["If program funds are expended for internal services, describe these services below."]
[]
[]
["Item Description",null,null,null,null,null,null,null,null,"Funding Source",null,null,"Total Cost"]
[]
[]
[]
[]
[]
[]
[]
[]
[]
[]
[null,null,null,null,"      ",null,null,null,null,null,"Total for Object Code:",null,{"$f":"SUM(M118:O127)","v":0}]
[]
["Page 26"]
[null,null,null,null,"School Division:",null,{"$f":"Narrative!A17","v":"ALBEMARLE COUNTY PUBLIC SCHOOLS"},null,null,null,null,null,"Division Number:",null,{"$f":"Narrative!$H$17","v":2}]
[]
[]
["JUSTIFICATION FOR TRAVEL COSTS - OBJECT CODE 5000"]
["Travel must be justified by demonstrating a relationship between the proposed travel and the needs of the program.  Please indicate the estimated cost."]
[]
[]
["Item Description",null,null,null,null,null,null,null,null,"Funding Source",null,null,"Total Cost"]
[]
[]
[]
[]
[]
[]
[]
[]
[]
[]
[null,null,null,null,"      ",null,null,null,null,null,"Total for Object Code:",null,{"$f":"SUM(M139:O148)","v":0}]
[]
["JUSTIFICATION FOR MATERIALS AND SUPPLIES - OBJECT CODE 6000"]
["Provide a description of materials, supplies, and all equipment less than $5,000 per unit.  Indicate the equipment quantity."]
[]
[]
["Item Description",null,null,null,null,null,null,"Funding Source",null,null,null,"Quantities","Total Cost"]
[]
[]
[]
[]
[]
[]
[]
[]
[]
[]
[null,null,null,null,"      ",null,null,null,"Total for Object Code:",null,null,{"$f":"SUM(L156:L165)","v":0},{"$f":"SUM(M156:O165)","v":0}]
["Page 27"]
[null,null,null,null,"School Division:",null,{"$f":"Narrative!A17","v":"ALBEMARLE COUNTY PUBLIC SCHOOLS"},null,null,null,null,null,"Division Number:",null,{"$f":"Narrative!$H$17","v":2}]
["JUSTIFICATION FOR CAPITAL OUTLAY - OBJECT CODE 8000"]
["All capital outlay expenditures over $5,000 must be approved in advance by the Department of Education. If the local school division has established a threshold of a lesser amount, items equal to that amount or greater must also receive prior approval by the Department of Education.  Equipment quantities must be specified."]
[]
[]
["Item Description",null,null,null,null,null,null,"Funding Source",null,null,null,"Quantities","Total Cost"]
[]
[]
[]
[]
[]
[]
[]
[]
[]
[]
[null,null,null,null,"      ",null,null,null,"Total for Object Code:",null,null,{"$f":"SUM(L174:L183)","v":0},{"$f":"SUM(M174:O183)","v":0}]
[]
[]
["Page 28"]
["Page 30"]

{"sheet":"GEPA","index":3,"n_rows":9,"n_cols":16,"rows_kept":9,"cut":false,"hidden":false,"merged":[[13,5,13,6],[13,7,13,8],[13,9,13,10],[11,5,11,6],[11,7,11,8],[11,9,11,10],[12,5,12,6],[12,7,12,8],[12,9,12,10],[7,0,7,15],[8,0,8,15],[10,5,10,6],[10,7,10,8],[10,9,10,10],[0,3,0,5],[1,0,1,15],[3,0,3,15],[5,0,5,15],[6,0,6,15]]}
[null,null,null,"School Division:",null,null,{"$f":"Narrative!$A$17","v":"ALBEMARLE COUNTY PUBLIC SCHOOLS"},null,null,null,null,null,"Division Number:",null,null,{"$f":"Narrative!$H$17","v":2}]
["H.  GENERAL EDUCATION PROVISIONS ACT (GEPA) SECTION 427"]
[]
["Section 427 of the General Education Provisions Act (GEPA) requires applicants for federal funds to include in their applications a description of the steps the applicant will take to ensure equitable access to, and participation in, federally-assisted programs for students, teachers, and other program beneficiaries with special needs. The provision allows applicants discretion in developing the required description. The statute highlights six types of barriers that can impede equitable access or participation: gender, race, national origin, color, disability, or age. Based on local circumstances, the applicant should determine whether these or other barriers may prevent students, teachers, etc., from such access or participation in the federally-funded project or activity. The description in the application of steps to be taken to overcome these barriers need not be lengthy; the application may provide a clear and succinct description of how the applicant plans to address those barriers that are applicable to their circumstances."]
[]
["Describe the steps the division will take to ensure equitable access to, and participation in, grant-funded programs for students, teachers, and other program beneficiaries with special needs as required by the General Education Provisions Act (GEPA) 427, OMB Control No. 1894-00045, Section 427."]
[]
[]
["Page 29"]

{"sheet":"Private Schools","index":4,"n_rows":97,"n_cols":23,"rows_kept":97,"cut":false,"hidden":false,"merged":[[30,0,30,22],[17,1,17,10],[18,1,18,10],[19,1,19,10],[22,1,22,10],[23,1,23,10],[66,9,66,10],[40,9,40,10],[26,0,26,22],[38,0,38,4],[36,0,36,4],[17,11,17,19],[36,9,36,10],[42,9,42,10],[41,9,41,10],[64,9,64,10],[46,11,46,12],[40,11,40,12],[51,11,51,12],[52,11,52,12],[46,9,46,10],[19,11,19,19],[33,14,33,18],[55,9,55,10],[84,9,84,10],[84,7,84,8],[79,7,79,8],[81,7,81,8],[77,7,77,8],[81,9,81,10],[80,7,80,8],[80,9,80,10],[61,9,61,10],[62,9,62,10],[82,9,82,10],[72,9,72,10],[77,9,77,10],[70,9,70,10],[79,9,79,10],[71,9,71,10],[76,9,76,10],[82,7,82,8],[78,7,78,8],[76,7,76,8],[83,9,83,10],[75,9,75,10],[74,9,74,10],[72,7,72,8],[33,19,33,20],[39,7,39,8],[38,5,38,6],[32,14,32,18],[35,7,35,8],[32,8,32,11],[38,11,38,12],[39,11,39,12],[37,16,37,21],[38,16,38,21],[39,13,39,15],[35,9,35,10],[33,8,33,11],[36,7,36,8],[36,11,36,12],[36,13,36,15],[39,9,39,10],[36,16,36,21],[37,13,37,15],[37,7,37,8],[32,5,32,7],[69,7,69,8],[70,7,70,8],[41,7,41,8],[41,5,41,6],[47,11,47,12],[96,0,96,22],[78,9,78,10],[56,9,56,10],[57,9,57,10],[80,5,80,6],[50,0,50,4],[48,5,48,6],[50,5,50,6],[48,0,48,4],[67,9,67,10],[68,9,68,10],[49,9,49,10],[85,9,85,10],[87,9,87,10],[86,9,86,10],[49,7,49,8],[48,9,48,10],[60,7,60,8],[57,7,57,8],[66,7,66,8],[52,9,52,10],[47,9,47,10],[56,7,56,8],[51,7,51,8],[53,7,53,8],[55,7,55,8],[50,7,50,8],[54,9,54,10],[53,9,53,10],[47,7,47,8],[52,7,52,8],[48,7,48,8],[58,7,58,8],[43,9,43,10],[45,9,45,10],[44,7,44,8],[45,0,45,4],[43,0,43,4],[43,5,43,6],[41,0,41,4],[41,11,41,12],[42,11,42,12],[43,11,43,12],[44,9,44,10],[44,11,44,12],[45,11,45,12],[47,5,47,6],[45,5,45,6],[46,0,46,4],[47,0,47,4],[45,7,45,8],[70,0,70,4],[69,5,69,6],[67,0,67,4],[61,7,61,8],[63,7,63,8],[64,7,64,8],[65,7,65,8],[62,7,62,8],[59,7,59,8],[67,7,67,8],[68,7,68,8],[46,7,46,8],[55,0,55,4],[60,0,60,4],[61,0,61,4],[57,0,57,4],[53,0,53,4],[54,0,54,4],[51,0,51,4],[73,5,73,6],[72,5,72,6],[60,5,60,6],[63,5,63,6],[84,0,84,4],[84,5,84,6],[49,5,49,6],[81,5,81,6],[44,0,44,4],[44,5,44,6],[64,5,64,6],[65,5,65,6],[82,0,82,4],[78,0,78,4],[77,5,77,6],[49,0,49,4],[80,0,80,4],[82,5,82,6],[74,0,74,4],[77,0,77,4],[79,5,79,6],[76,0,76,4],[46,5,46,6],[73,0,73,4],[53,5,53,6],[54,5,54,6],[52,0,52,4],[52,5,52,6],[69,0,69,4],[71,0,71,4],[71,5,71,6],[72,0,72,4],[59,0,59,4],[64,0,64,4],[86,7,86,8],[87,0,87,4],[88,0,88,4],[87,5,87,6],[87,7,87,8],[88,5,88,6],[88,7,88,8],[86,0,86,4],[66,5,66,6],[85,5,85,6],[85,7,85,8],[75,7,75,8],[68,5,68,6],[68,0,68,4],[66,0,66,4],[83,5,83,6],[83,7,83,8],[83,0,83,4],[78,5,78,6],[75,0,75,4],[81,0,81,4],[79,0,79,4],[73,7,73,8],[71,7,71,8],[90,0,90,4],[91,5,91,6],[85,0,85,4],[55,5,55,6],[67,5,67,6],[62,0,62,4],[89,0,89,4],[91,0,91,4],[90,5,90,6],[89,5,89,6],[65,0,65,4],[86,5,86,6],[63,0,63,4],[57,5,57,6],[56,5,56,6],[61,5,61,6],[62,5,62,6],[56,0,56,4],[58,0,58,4],[58,5,58,6],[74,5,74,6],[75,5,75,6],[70,5,70,6],[76,5,76,6],[22,11,22,19],[32,19,32,20],[23,11,23,19],[24,1,24,10],[24,11,24,19],[31,0,31,22],[42,13,42,15],[43,13,43,15],[41,16,41,21],[42,16,42,21],[43,16,43,21],[41,13,41,15],[33,12,33,13],[33,5,33,7],[38,13,38,15],[35,16,35,21],[42,7,42,8],[43,7,43,8],[42,0,42,4],[42,5,42,6],[37,0,37,4],[37,5,37,6],[32,12,32,13],[35,13,35,15],[48,13,48,15],[49,13,49,15],[50,13,50,15],[68,11,68,12],[69,11,69,12],[73,11,73,12],[72,11,72,12],[58,9,58,10],[65,9,65,10],[63,9,63,10],[59,13,59,15],[71,11,71,12],[48,11,48,12],[49,11,49,12],[55,11,55,12],[56,11,56,12],[70,11,70,12],[74,7,74,8],[73,9,73,10],[59,9,59,10],[69,9,69,10],[44,13,44,15],[59,5,59,6],[50,9,50,10],[51,9,51,10],[60,9,60,10],[54,7,54,8],[65,11,65,12],[66,11,66,12],[67,11,67,12],[51,5,51,6],[52,13,52,15],[45,13,45,15],[46,13,46,15],[47,13,47,15],[60,13,60,15],[61,13,61,15],[62,13,62,15],[63,13,63,15],[64,13,64,15],[65,13,65,15],[1,0,1,22],[10,19,10,22],[40,0,40,4],[36,5,36,6],[14,11,14,12],[39,5,39,6],[2,0,2,22],[6,0,7,22],[28,0,28,22],[18,11,18,19],[40,7,40,8],[37,9,37,10],[38,7,38,8],[38,9,38,10],[39,0,39,4],[35,11,35,12],[37,11,37,12],[39,16,39,21],[40,16,40,21],[40,13,40,15],[12,13,12,22],[35,0,35,4],[35,5,35,6],[40,5,40,6],[86,11,86,12],[87,11,87,12],[64,11,64,12],[61,11,61,12],[50,11,50,12],[57,11,57,12],[58,11,58,12],[59,11,59,12],[62,11,62,12],[63,11,63,12],[60,11,60,12],[84,11,84,12],[85,11,85,12],[74,11,74,12],[75,11,75,12],[76,11,76,12],[77,11,77,12],[78,11,78,12],[79,11,79,12],[53,11,53,12],[54,11,54,12],[80,11,80,12],[81,11,81,12],[82,11,82,12],[44,16,44,21],[45,16,45,21],[46,16,46,21],[47,16,47,21],[48,16,48,21],[49,16,49,21],[56,16,56,21],[57,16,57,21],[58,16,58,21],[50,16,50,21],[51,16,51,21],[52,16,52,21],[53,16,53,21],[54,16,54,21],[55,16,55,21],[59,16,59,21],[53,13,53,15],[54,13,54,15],[55,13,55,15],[56,13,56,15],[57,13,57,15],[58,13,58,15],[51,13,51,15],[79,16,79,21],[69,16,69,21],[70,16,70,21],[71,16,71,21],[72,16,72,21],[73,16,73,21],[66,13,66,15],[67,13,67,15],[68,13,68,15],[69,13,69,15],[70,13,70,15],[73,13,73,15],[74,13,74,15],[75,13,75,15],[76,13,76,15],[74,16,74,21],[75,16,75,21],[76,16,76,21],[77,16,77,21],[78,16,78,21],[83,11,83,12],[66,16,66,21],[67,16,67,21],[60,16,60,21],[61,16,61,21],[62,16,62,21],[63,16,63,21],[64,16,64,21],[65,16,65,21],[68,16,68,21],[77,13,77,15],[78,13,78,15],[79,13,79,15],[80,13,80,15],[81,13,81,15],[82,13,82,15],[71,13,71,15],[72,13,72,15],[80,16,80,21],[81,16,81,21],[82,16,82,21],[83,16,83,21],[84,16,84,21],[85,16,85,21],[89,13,89,15],[90,13,90,15],[91,13,91,15],[83,13,83,15],[84,13,84,15],[85,13,85,15],[86,13,86,15],[87,13,87,15],[88,13,88,15],[91,16,91,21],[86,16,86,21],[87,16,87,21],[88,16,88,21],[89,16,89,21],[90,16,90,21],[88,11,88,12],[89,11,89,12],[90,11,90,12],[91,11,91,12],[93,7,93,8],[89,7,89,8],[88,9,88,10],[89,9,89,10],[90,7,90,8],[91,7,91,8],[90,9,90,10],[91,9,91,10],[92,9,92,10],[95,0,95,4],[95,5,95,6],[95,7,95,8],[95,9,95,10],[95,11,95,12],[92,16,92,21],[93,16,93,21],[94,16,94,21],[94,0,94,4],[94,5,94,6],[94,13,94,15],[93,0,93,4],[93,5,93,6],[92,0,92,4],[92,5,92,6],[92,11,92,12],[93,11,93,12],[93,9,93,10],[92,7,92,8],[92,13,92,15],[93,13,93,15],[94,9,94,10],[94,11,94,12],[94,7,94,8]]}
[null,null,null,null,"School Division:",null,{"$f":"Narrative!$A$17","v":"ALBEMARLE COUNTY PUBLIC SCHOOLS"},null,null,null,null,null,null,null,null,null,null,null,null,"Division Number:",null,null,{"$f":"Narrative!$H$17","v":2}]
["I.  PRIVATE SCHOOL PARTICIPATION"]
["Each year, the school division must contact all eligible private (nonprofit) schools and engage in meaningful consultation on the availability of equitable services funded by Title IV, Part A. (ESEA Section 8501 and Title VIII, Uniform Provisions, Part F, Subpart 1)."]
["1. Are there private nonprofit schools in your school division’s attendance area?"]
[null,null,null,"Yes (If yes, complete the remainder of this page.)",null,null,null,null,null,null,null,null,"No (If no, it is not necessary to complete the rest of this page.)"]
[]
["2. Place an \"X\" in the appropriate block(s) to indicate how private schools in the division were notified on the availability of equitable services funded by Title IV, Part A. (Copies of the notification must be kept on file for monitoring purposes.)"]
[]
[null,null,"Regular Mail",null,null,null,null,null,null,null,"Certified Mail"]
[]
[null,null,"Telephone Calls",null,null,null,null,null,null,null,"Meetings"]
[]
[null,null,"Visits to the Private School",null,null,null,null,null,null,null,"Other (Please specify)"]
[]
["3. What is the public school division's projected K-12 enrollment for the 2019-2020 school year?"]
[]
["4. Determining Set-Asides (These fields will calculate automatically once enrollment figures have been entered.)"]
[null,"a. Proposed Budget ",null,null,null,null,null,null,null,null,null,{"$f":"Budget!M42","v":0}]
[null,"b. Amount of funds allocated for administration ",null,null,null,null,null,null,null,null,null,{"$f":"SUM(Budget!G7:L7)+SUM(Budget!G13:L13)+SUM(Budget!G29:L29)+SUM(Budget!G33:L33)","v":0}]
[null,"c. Amount to use for set-aside calculations",null,null,null,null,null,null,null,null,null,{"$f":"L18-L19","v":0}]
[]
["5. Determining additional set-asides as a result of Transferability. These fields will calculate automatically once budget and enrollment figures have been entered."]
[null,"a. Proposed Budget ",null,null,null,null,null,null,null,null,null,{"$f":"Transferability!M12","v":0}]
[null,"b. Amount of funds allocated for administration ",null,null,null,null,null,null,null,null,null,{"$f":"SUM(Transferability!M15)+SUM(Transferability!M22)+SUM(Transferability!M41)+SUM(Transferability!M46)","v":0}]
[null,"c. Amount to use for set-aside calculations",null,null,null,null,null,null,null,null,null,{"$f":"L23-L24","v":0}]
[]
["6. Complete the chart below:\n• In Column A, list all eligible private schools in the geographic boundaries of the school division.\n• In Column B, indicate the participation status of the listed private school(s) for the 2019-2020 award year, as a result of consultation.\n• In Column C, enter the K-12 enrollment of private schools participating in services for the 2019-2020 award year.\n• Column D will automatically calculate the value of services for the 2019-2020 award year.\n• In Column E, indicate the method of notification for each private school."]
[]
["7. For the 2019-2020 award year, enter the value of services amount in cell F34 on the budget tab in the budget summary on the “Private School Set-Aside” lines.  On the Budget Detail pages, list as \"Private School Set-Aside\" under the appropriate object codes."]
[]
["Page 30"]
["8. Enter the value of additional services amount in cell I34 on the transferability tab in the appropriate object codes.  On the budget detail section on the same tab, list as \"Private School Set-Aside\" under the appropriate object codes."]
[null,null,null,null,null,"Value of Services for Participating Private Schools – from Title IVA 2019-2020 Budget",null,null,"Value of Additional Services for Participating Private Schools - from 2019-2020 TRANSFERABILITY",null,null,null,"Total Value of Services for Public Schools  from 2019-2020 Allocation",null,"Total Value of Additional Services for Public Schools from 2019-2020 TRANSFERABITY"]
[null,null,null,null,null,{"$f":"J95","v":0},null,null,{"$f":"L95","v":0},null,null,null,{"$f":"L20-J95","v":0},null,{"$f":"L25-L95","v":0}]
[]
["A",null,null,null,null,"B",null,"C",null,"D",null,"E",null,"F",null,null,"G"]
[" Private Schools",null,null,null,null,"Participation Status for 2019-2020 Award Year?\n(Yes/No)  ",null,"K-12\n Enrollment ",null,"Value of Services for Participating Private Schools – \nfrom Title IVA \n2019-2020 budget\n(calculated field)",null,"Value of Additional Services for Participating Private Schools - \nfrom 2019-2020 \nTRANSFERABILITY",null,"Total Value of Services (D+E)",null,null,"Method of Notification\n(for non-participating schools only)"]
[null,null,null,null,null,null,null,null,null,{"$f":"ROUND(IF(F38=\"Yes\",H38*$F$95,0),2)","v":0},null,{"$f":"ROUND(IF(F38=\"Yes\",H38*$F$96,0),2)","v":0},null,{"$f":"SUM(J38+L38)","v":0}]
[null,null,null,null,null,null,null,null,null,{"$f":"ROUND(IF(F39=\"Yes\",H39*$F$95,0),2)","v":0},null,{"$f":"ROUND(IF(F39=\"Yes\",H39*$F$96,0),2)","v":0},null,{"$f":"SUM(J39+L39)","v":0}]
[null,null,null,null,null,null,null,null,null,0,null,0,null,0]
[null,null,null,null,null,null,null,null,null,0,null,0,null,0]
[null,null,null,null,null,null,null,null,null,0,null,0,null,0]
[null,null,null,null,null,null,null,null,null,0,null,0,null,0]
[null,null,null,null,null,null,null,null,null,0,null,0,null,0]
[null,null,null,null,null,null,null,null,null,0,null,0,null,0]
[null,null,null,null,null,null,null,null,null,0,null,0,null,0]
[null,null,null,null,null,null,null,null,null,0,null,0,null,0]
[null,null,null,null,null,null,null,null,null,0,null,0,null,0]
[null,null,null,null,null,null,null,null,null,0,null,0,null,0]
[null,null,null,null,null,null,null,null,null,0,null,0,null,0]
[null,null,null,null,null,null,null,null,null,0,null,0,null,0]
[null,null,null,null,null,null,null,null,null,0,null,0,null,0]
[null,null,null,null,null,null,null,null,null,0,null,0,null,0]
[null,null,null,null,null,null,null,null,null,0,null,0,null,0]
[null,null,null,null,null,null,null,null,null,0,null,0,null,0]
[null,null,null,null,null,null,null,null,null,0,null,0,null,0]
[null,null,null,null,null,null,null,null,null,0,null,0,null,0]
[null,null,null,null,null,null,null,null,null,0,null,0,null,0]
[null,null,null,null,null,null,null,null,null,0,null,0,null,0]
[null,null,null,null,null,null,null,null,null,0,null,0,null,0]
[null,null,null,null,null,null,null,null,null,0,null,0,null,0]
[null,null,null,null,null,null,null,null,null,0,null,0,null,0]
[null,null,null,null,null,null,null,null,null,0,null,0,null,0]
[null,null,null,null,null,null,null,null,null,0,null,0,null,0]
[null,null,null,null,null,null,null,null,null,0,null,0,null,0]
[null,null,null,null,null,null,null,null,null,0,null,0,null,0]
[null,null,null,null,null,null,null,null,null,0,null,0,null,0]
[null,null,null,null,null,null,null,null,null,0,null,0,null,0]
[null,null,null,null,null,null,null,null,null,0,null,0,null,0]
[null,null,null,null,null,null,null,null,null,0,null,0,null,0]
[null,null,null,null,null,null,null,null,null,0,null,0,null,0]
[null,null,null,null,null,null,null,null,null,0,null,0,null,0]
[null,null,null,null,null,null,null,null,null,0,null,0,null,0]
[null,null,null,null,null,null,null,null,null,0,null,0,null,0]
[null,null,null,null,null,null,null,null,null,0,null,0,null,0]
[null,null,null,null,null,null,null,null,null,0,null,0,null,0]
[null,null,null,null,null,null,null,null,null,0,null,0,null,0]
[null,null,null,null,null,null,null,null,null,0,null,0,null,0]
[null,null,null,null,null,null,null,null,null,0,null,0,null,0]
[null,null,null,null,null,null,null,null,null,0,null,0,null,0]
[null,null,null,null,null,null,null,null,null,0,null,0,null,0]
[null,null,null,null,null,null,null,null,null,0,null,0,null,0]
[null,null,null,null,null,null,null,null,null,0,null,0,null,0]
[null,null,null,null,null,null,null,null,null,0,null,0,null,0]
[null,null,null,null,null,null,null,null,null,0,null,0,null,0]
[null,null,null,null,null,null,null,null,null,0,null,0,null,0]
[null,null,null,null,null,null,null,null,null,0,null,0,null,0]
[null,null,null,null,null,null,null,null,null,0,null,0,null,0]
[null,null,null,null,null,null,null,null,null,0,null,0,null,0]
[null,null,null,null,null,null,null,null,null,0,null,0,null,0]
[null,null,null,null,null,null,null,null,null,0,null,0,null,0]
[null,null,null,null,null,null,null,null,null,0,null,0,null,0]
[null,null,null,null,null,null,null,null,null,0,null,0,null,0]
[null,null,null,null,null,null,null,null,null,0,null,0,null,{"$f":"SUM(J94+L94)","v":0}]
["Per Pupil Expenditure \n(calculated field):          ",null,null,null,null,{"$f":"IF(ISERROR(SUM(L20)/(SUM(L15)+SUMIF(F38:G94,\"Yes\",H38:I94))),0,SUM(L20)/(SUM(L15)+SUMIF(F38:G94,\"Yes\",H38:I94)))","v":0},null,"Total Private School Set-Asides",null,{"$f":"SUM(J38:K94)","v":0},null,{"$f":"SUM(L38:M94)","v":0}]
["Per Pupil Expenditure for Transferability funds (calculated field):",null,null,null,null,{"$f":"IF(ISERROR(SUM(L25)/(SUM(L15)+SUMIF(F38:G94,\"Yes\",H38:I94))),0,SUM(L25)/(SUM(L15)+SUMIF(F38:G94,\"Yes\",H38:I94)))","v":0},null,null,null,"Use this Figure for Private School Set-Asides in the 2019-2020 Budget",null,"Use this Figure for Private School Set-Asides in the 2019-2020 Transferability Budget"]
["Page 32"]

{"sheet":"Sheet1","index":5,"n_rows":3,"n_cols":5,"rows_kept":3,"cut":false,"hidden":true,"merged":[]}
["Well Rounded Students",null,"Yes",null,"Title II, Part A, Transferability"]
["Safe and Healthy Students",null,"No"]
["Technology"]

{"sheet":"Eisenhower","index":6,"n_rows":137,"n_cols":3,"rows_kept":137,"cut":false,"hidden":true,"merged":[]}
["Division","Payee Code","Eisenhower 2001-02 Allocation"]
["Accomack County Public Schools",1,40219]
["Albemarle County Public Schools",2,51797]
["Alleghany County Public Schools",3,17117]
["Amelia County Public Schools",4,9570]
["Amherst County Public Schools",5,23328]
["Appomattox County Public Schools",6,13233]
["Arlington City Public Schools",7,95426]
["Augusta County Public Schools",8,46299]
["Bath County Public Schools",9,4106]
["Bedford City Public Schools",10,45969]
["Bland County Public Schools",11,4276]
["Botetourt County Public Schools",12,17978]
["Brunswick County Public Schools",13,20999]
["Buchanan County Public Schools",14,45671]
["Buckingham County Public Schools",15,16039]
["Campbell County Public Schools",16,43611]
["Caroline County Public Schools",17,21130]
["Carroll County Public Schools",18,24846]
["Charles City County Public Schools",19,6554]
["Charlotte County Public Schools",20,14605]
["Chesterfield County Public Schools",21,203846]
["Clarke County Public Schools",22,9598]
["Craig County Public Schools",23,3793]
["Culpeper County Public Schools",24,28401]
["Cumberland County Public Schools",25,9657]
["Dickenson County Public Schools",26,30316]
["Dinwiddie County Public Schools",27,23432]
["Essex County Public Schools",28,9550]
["Fairfax City Public Schools",29,598091]
["Fauquier County Public Schools",30,41272]
["Floyd County Public Schools",31,11053]
["Fluvanna County Public Schools",32,14485]
["Franklin County Public Schools",33,38410]
["Frederick County Public Schools",34,44378]
["Giles County Public Schools",35,14946]
["Gloucester County Public Schools",36,32788]
["Goochland County Public Schools",37,8628]
["Grayson County Public Schools",38,16690]
["Greene County Public Schools",39,14718]
["Greensville County Public Schools",40,20374]
["Halifax County Public Schools",41,38749]
["Hanover County Public Schools",42,57659]
["Henrico County Public Schools",43,178303]
["Henry County Public Schools",44,52795]
["Highland County Public Schools",45,1935]
["Isle of Wight County Public Schools",46,27152]
["King George County Public Schools",48,13419]
["King and Queen County Public Schools",49,6912]
["King William County Public Schools",50,8380]
["Lancaster County Public Schools",51,10507]
["Lee County Public Schools",52,41263]
["Loudoun County Public Schools",53,96953]
["Louisa County Public Schools",54,23738]
["Lunenburg County Public Schools",55,15190]
["Madison County Public Schools",56,11853]
["Mathews County Public Schools",57,7014]
["Mecklenburg County Public Schools",58,32938]
["Middlesex County Public Schools",59,8368]
["Montgomery County Public Schools",60,54140]
["Nelson County Public Schools",62,13815]
["New Kent County Public Schools",63,9077]
["Northampton County Public Schools",65,21346]
["Northumberland County Public Schools",66,10384]
["Nottoway County Public Schools",67,18218]
["Orange County Public Schools",68,18979]
["Page County Public Schools",69,21063]
["Patrick County Public Schools",70,16611]
["Pittsylvania County Public Schools",71,52751]
["Powhatan County Public Schools",72,13446]
["Prince Edward County Public Schools",73,21122]
["Prince George County Public Schools",74,242268]
["Prince William County Public Schools",75,196730]
["Pulaski County Public Schools",77,33374]
["Rappahannock County Public Schools",78,5138]
["Richmond County Public Schools",79,8129]
["Roanoke  County Public Schools",80,51084]
["Rockbridge County Public Schools",81,16141]
["Rockingham County Public Schools",82,47793]
["Russell County Public Schools",83,38558]
["Scott County Public Schools",84,25851]
["Shenandoah County Public Schools",85,29778]
["Smyth County Public Schools",86,36172]
["Southampton County Public Schools",87,18229]
["Spotsylvania County Public Schools",88,69801]
["Stafford County Public Schools",89,72619]
["Surry County Public Schools",90,7504]
["Sussex County Public Schools",91,12362]
["Tazewell County Public Schools",92,60941]
["Warren County Public Schools",93,25597]
["Washington County Public Schools",94,44834]
["Westmoreland County Public Schools",95,14506]
["Wise County Public Schools",96,61108]
["Wythe County Public Schools",97,30649]
["York County Public Schools",98,46236]
["Alexandria City Public Schools",101,69247]
["Bristol City Public Schools",102,21473]
["Buena Vista City Public Schools",103,6888]
["Charlottesville City Public Schools",104,38826]
["Colonial Heights City Public Schools",106,12438]
["Covington City Public Schools",107,7236]
["Danville City Public Schools",108,72571]
["Falls Church City Public Schools",109,7301]
["Fredericksburg City Public Schools",110,17330]
["Galax City Public Schools",111,9206]
["Hampton City Public Schools",112,149143]
["Harrisonburg City Public Schools",113,25488]
["Hopewell City Public Schools",114,30889]
["Lynchburg City Public Schools",115,78002]
["Martinsville City Public Schools",116,18810]
["Newport News City Public Schools",117,230453]
["Norfolk City Public Schools",118,339860]
["Norton City Public Schools",119,6864]
["Petersburg City Public Schools",120,52679]
["Portsmouth City Public Schools",121,152072]
["Radford City Public Schools",122,8930]
["Richmond City Public Schools",123,281765]
["Roanoke City Public Schools",124,122107]
["Staunton City Public Schools",126,19574]
["Suffolk City Public Schools",127,79656]
["Virginia Beach City Public Schools",128,384961]
["Waynesboro City Public Schools",130,19429]
["Williamsburg City Public Schools",131,37910]
["Winchester City Public Schools",132,21654]
["Fairfax City Public Schools",134,10264]
["Franklin City Public Schools",135,13179]
["Chesapeake City Public Schools",136,190847]
["Lexington City Public Schools",137,3719]
["Salem City Public Schools",139,18844]
["Poquoson City Public Schools",142,8712]
["Manassas City Public Schools",143,26521]
["Manassas Park City Public Schools",144,7878]
["Colonial Beach Town Public Schools",202,3794]
["West Point Town Public Schools",207,3095]
["VSDB Staunton",218,2806]
["VSDB Hampton",219,1708]
["Va Dept of Correctional Education",900,36639]

{"sheet":"Prefills","index":7,"n_rows":288,"n_cols":61,"rows_kept":288,"cut":false,"hidden":true,"merged":[]}
["Name","Code",null,null,null,null,null,null,"INNOVATIVE ASSISTANCE PROGRAM AREAS",null,null,null,null,null,null,null,null,null,null,null,"Yes",null,"Yes",null,null,"Title I A",null,null,null,"Title I C",null,null,null,"Title ID",null,null,null,"Title IIA",null,null,null,"Title IID",null,null,null,"Title III",null,null,null,"Title IV",null,null,null,"Title V",null,null,null,"Title VI"]
["ACCOMACK COUNTY PUBLIC SCHOOLS",1,null,null,null,null,null,null,null,null,null,null,null,null,null,null,null,null,null,null,"No",null,"No",null,null,"Payee","ProjectGroupID","CONoSOLIDATED_APP_FLAG","Allocation","Payee","ProjectGroupID","CONoSOLIDATED_APP_FLAG","Allocation","Payee","ProjectGroupID","CONoSOLIDATED_APP_FLAG","Allocation","Payee","ProjectGroupID","CONoSOLIDATED_APP_FLAG","Allocation","Payee","ProjectGroupID","CONoSOLIDATED_APP_FLAG","Allocation","Payee","ProjectGroupID","CONoSOLIDATED_APP_FLAG","Allocation","Payee","ProjectGroupID","CONoSOLIDATED_APP_FLAG","Allocation","Payee","ProjectGroupID","CONoSOLIDATED_APP_FLAG","Allocation","Payee","ProjectGroupID","CONoSOLIDATED_APP_FLAG","Allocation"]
["ALBEMARLE COUNTY PUBLIC SCHOOLS",2,null,null,null,null,null," "," ",null,null,null,null,null,null,null,null,null,null,null,null,null,"Shared Services Only",null,null,1,1,"Yes",null,1,2,"Yes",null,1,3,"Yes",null,1,4,"Yes",285018.61,null,null,null,null,1,6,"Yes",null,1,97,null,148995.12481710495,null,null,null,null,1,9,"Yes"]
["ALEXANDRIA CITY PUBLIC SCHOOLS",101,null,null,null,null,null,"1. ","1. Recruiting, training, and hiring highly qualified teachers to reduce class size",null,null,null,null,null,null,null,null,null,null,null,null,null,null,null,null,2,1,"No",null,2,2,"No",null,2,3,"No",null,2,4,"No",309434.74,null,null,null,null,2,6,"No",null,2,97,null,105615.08197445725,null,null,null,null,2,9,"No"]
["ALLEGHANY COUNTY PUBLIC SCHOOLS",3,null,null,null,null,null,"2. ","2. Technology activities, including professional development",null,null,null,null,null,null,null,null,null,null,null,null,null,null,null,null,3,1,"Yes",null,3,2,"Yes",null,3,3,"Yes",null,3,4,"Yes",106591.23,null,null,null,null,3,6,"Yes",null,3,97,null,42226.183262825405,null,null,null,null,3,9,"Yes"]
["AMELIA COUNTY PUBLIC SCHOOLS",4,null,null,null,null,null,"3a.","3a. Development or acquisition and use of: computer software and hardware",null,null,null,null,null,null,null,null,null,null,null,null,null,"Yes",null,null,4,1,"Yes",null,4,2,"Yes",null,4,3,"Yes",null,4,4,"Yes",65194.85,null,null,null,null,4,6,"Yes",null,4,97,null,24120.825965265707,null,null,null,null,4,9,"Yes"]
["AMHERST COUNTY PUBLIC SCHOOLS",5,null,null,null,null,null,"3b.","3b. Development or acquisition and use of: instructional/reference materials and academic assessments",null,null,null,null,null,null,null,null,null,null,null,null,null,"No",null,null,5,1,"No",null,5,2,"No",null,5,3,"No",null,5,4,"No",157542.35,null,null,null,null,5,6,"No",null,5,97,null,68421.229108719592,null,null,null,null,5,9,"No"]
["APPOMATTOX COUNTY PUBLIC SCHOOLS",6,null,null,null,null,null,"3c.","3c. Development or acquisition and use of: library/media services and materials",null,null,null,null,null,null,null,null,null,null,null,null,null,null,null,null,6,1,"No",null,6,2,"No",null,6,3,"No",null,6,4,"No",87175.73,null,null,null,null,6,6,"No",null,6,97,null,37500.555066562985,null,null,null,null,6,9,"No"]
["ARLINGTON COUNTY PUBLIC SCHOOLS",7,null,null,null,null,null,"4. ","4. Educational reform projects, including magnet schools",null,null,null,null,null,null,null,null,null,null,null,null,null,null,null,null,7,1,"Yes",null,7,2,"Yes",null,7,3,"Yes",null,7,4,"Yes",575325.02,null,null,null,null,7,6,"Yes",null,7,97,null,172005.81353037266,null,null,null,null,7,9,"Yes"]
["AUGUSTA COUNTY PUBLIC SCHOOLS",8,null,null,null,null,null,"5. ","5. Programs to improve the academic achievement of educationally disadvantaged elementary and secondary students, including dropout prevention",null,null,null,null,null,null,null,null,null,null,null,null,null,null,null,null,8,1,"No",null,8,2,"No",null,8,3,"No",null,8,4,"No",267370.76,null,null,null,null,8,6,"No",null,8,97,null,91580.517908823735,null,null,null,null,8,9,"No"]
["BATH COUNTY PUBLIC SCHOOLS",9,null,null,null,null,null,"6. ","6. Programs to improve the literacy skills of adults, including adult education and family literacy programs",null,null,null,null,null,null,null,null,null,null,null,null,null,null,null,null,9,1,"No",null,9,2,"No",null,9,3,"No",null,9,4,"No",22599.119999999999,null,null,null,null,9,6,"No",null,9,97,null,10000,null,null,null,null,9,9,"No"]
["BEDFORD CITY PUBLIC SCHOOLS",140,null,null,null,null,null,"7. ","7. Programs for gifted and talented children",null,null,null,null,null,null,null,null,null,null,null,null,null,null,null,null,10,1,"No",null,10,2,"No",null,10,3,"No",null,10,4,"No",282012.89,null,null,null,null,10,6,"No",null,10,97,null,100073.35571761079,null,null,null,null,10,9,"No"]
["BEDFORD COUNTY PUBLIC SCHOOLS",10,null,null,null,null,null,"8. ","8. Planning, design, and initial implementation of charter schools under Title V, Part B",null,null,null,null,null,null,null,null,null,null,null,null,null,null,null,null,11,1,"Yes",null,11,2,"Yes",null,11,3,"Yes",null,11,4,"Yes",28259.51,null,null,null,null,11,6,"Yes",null,11,97,null,10000,null,null,null,null,11,9,"Yes"]
["BLAND COUNTY PUBLIC SCHOOLS",11,null,null,null,null,null,"9. ","9. School improvement programs or activities under Sections 1116 and 1117 of Title I, Part A",null,null,null,null,null,null,null,null,null,null,null,null,null,null,null,null,12,1,"No",null,12,2,"No",null,12,3,"No",null,12,4,"No",99570.94,null,null,null,null,12,6,"No",null,12,97,null,27583.860466738712,null,null,null,null,12,9,"No"]
["BOTETOURT COUNTY PUBLIC SCHOOLS",12,null,null,null,null,null,"10.","10. Community service programs",null,null,null,null,null,null,null,null,null,null,null,null,null,null,null,null,13,1,"Yes",null,13,2,"Yes",null,13,3,"Yes",null,13,4,"Yes",138844.75,null,null,null,null,13,6,"Yes",null,13,97,null,55315.482897139438,null,null,null,null,13,9,"Yes"]
["BRISTOL CITY PUBLIC SCHOOLS",102,null,null,null,null,null,"11.","11. Consumer, economic, and personal finance education",null,null,null,null,null,null,null,null,null,null,null,null,null,null,null,null,14,1,"Yes",null,14,2,"Yes",null,14,3,"Yes",null,14,4,"Yes",284870.84000000003,null,null,null,null,14,6,"Yes",null,14,97,null,84640.61704677793,null,null,null,null,14,9,"Yes"]
["BRUNSWICK COUNTY PUBLIC SCHOOLS",13,null,null,null,null,null,"12.","12. Public school choice",null,null,null,null,null,null,null,null,null,null,null,null,null,1000,null,null,15,1,"Yes",null,15,2,"Yes",null,15,3,"Yes",null,15,4,"Yes",114275.33,null,null,null,null,15,6,"Yes",null,15,97,null,50312.300954161423,null,null,null,null,15,9,"Yes"]
["BUCHANAN COUNTY PUBLIC SCHOOLS",14,null,null,null,null,null,"13.","13. Programs to hire and support school nurses",null,null,null,null,null,null,null,null,null,null,null,null,null,2000,null,null,16,1,"No",null,16,2,"No",null,16,3,"No",null,16,4,"No",280543.86,null,null,null,null,16,6,"No",null,16,97,null,109950.45853763292,null,null,null,null,16,9,"No"]
["BUCKINGHAM COUNTY PUBLIC SCHOOLS",15,null,null,null,null,null,"14.","14. School-based mental health services",null,null,null,null,null,null,null,null,null,null,null,null,null,3000,null,null,17,1,"Yes",null,17,2,"Yes",null,17,3,"Yes",null,17,4,"Yes",144371.48000000001,null,null,null,null,17,6,"Yes",null,17,97,null,62998.097281049595,null,null,null,null,17,9,"Yes"]
["BUENA VISTA CITY PUBLIC SCHOOLS",103,null,null,null,null,null,"15.","15. Alternative educational programs",null,null,null,null,null,null,null,null,null,null,null,null,null,4000,null,null,18,1,"No",null,18,2,"No",null,18,3,"No",null,18,4,"No",170008.63,null,null,null,null,18,6,"No",null,18,97,null,73572.067719952407,null,null,null,null,18,9,"No"]
["CAMPBELL COUNTY PUBLIC SCHOOLS",16,null,null,null,null,null,"16.","16. Prekindergarten programs",null,null,null,null,null,null,null,null,null,null,null,null,null,5000,null,null,19,1,"Yes",null,19,2,"Yes",null,19,3,"Yes",null,19,4,"Yes",40727.79,null,null,null,null,19,6,"Yes",null,19,97,null,12344.907039378557,null,null,null,null,19,9,"Yes"]
["CAROLINE COUNTY PUBLIC SCHOOLS",17,null,null,null,null,null,"17.","17. Academic intervention programs jointly operated with community-based organizations ",null,null,null,null,null,null,null,null,null,null,null,null,null,6000,null,null,20,1,"Yes",null,20,2,"Yes",null,20,3,"Yes",null,20,4,"Yes",98801.22,null,null,null,null,20,6,"Yes",null,20,97,null,50742.933729264267,null,null,null,null,20,9,"Yes"]
["CARROLL COUNTY PUBLIC SCHOOLS",18,null,null,null,null,null,"18.","18. CPR training",null,null,null,null,null,null,null,null,null,null,null,null,null,8000,null,null,21,1,"No",null,21,2,"No",null,21,3,"No",null,21,4,"No",1100170.8400000001,null,null,null,null,21,6,"No",null,21,97,null,478060.14443522121,null,null,null,null,21,9,"No"]
["CHARLES CITY COUNTY PUBLIC SCHOOLS",19,null,null,null,null,null,"19.","19. Smaller learning communities",null,null,null,null,null,null,null,null,null,null,null,null,null,null,null,null,22,1,"No",null,22,2,"No",null,22,3,"No",null,22,4,"No",53983.95,null,null,null,null,22,6,"No",null,22,97,null,13275.989098027816,null,null,null,null,22,9,"No"]
["CHARLOTTE COUNTY PUBLIC SCHOOLS",20,null,null,null,null,null,"20.","20. Activities that encourage and expand improvements throughout the LEA area that  are designed to advance student academic achievement",null,null,null,null,null,null,null,null,null,null,null,null,null,null,null,null,23,1,"Yes",null,23,2,"Yes",null,23,3,"Yes",null,23,4,"Yes",22655.09,null,null,null,null,23,6,"Yes",null,23,97,null,12548.239537561227,null,null,null,null,23,9,"Yes"]
["CHARLOTTESVILLE CITY PUBLIC SCHOOLS",104,null,null,null,null,null,"21.","21. Parental and community involvement",null,null,null,null,null,null,null,null,null,null,null,null,null,null,null,null,24,1,"No",null,24,2,"No",null,24,3,"No",null,24,4,"No",196335.99,null,null,null,null,24,6,"No",null,24,97,null,101541.35248469835,null,null,null,null,24,9,"No"]
["CHESAPEAKE CITY PUBLIC SCHOOLS",136,null,null,null,null,null,"22.","22. Activities that expand learning through best-practice models",null,null,null,null,null,null,null,null,null,null,null,null,null,null,null,null,25,1,"Yes",null,25,2,"Yes",null,25,3,"Yes",null,25,4,"Yes",67373.3,null,null,null,null,25,6,"Yes",null,25,97,null,32969.531863252421,null,null,null,null,25,9,"Yes"]
["CHESTERFIELD COUNTY PUBLIC SCHOOLS",21,null,null,null,null,null,"23.","23. Same-gender schools and classrooms (consistent with applicable law)**",null,null,null,null,null,null,null,null,null,null,null,null,null,null,null,null,26,1,"No",null,26,2,"No",null,26,3,"No",null,26,4,"No",188883.41,null,null,null,null,26,6,"No",null,26,97,null,59876.397275855074,null,null,null,null,26,9,"No"]
["CLARKE COUNTY PUBLIC SCHOOLS",22,null,null,null,null,null,"24.","24. Service learning activities",null,null,null,null,null,null,null,null,null,null,null,null,null,null,null,null,27,1,"Yes",null,27,2,"Yes",null,27,3,"Yes",null,27,4,"Yes",148246.69,null,null,null,null,27,6,"Yes",null,27,97,null,55661.769104280451,null,null,null,null,27,9,"Yes"]
["CLIFTON FORGE CITY",105,null,null,null,null,null,"25.","25. School safety programs",null,null,null,null,null,null,null,null,null,null,null,null,null,null,null,null,28,1,"No",null,28,2,"No",null,28,3,"No",null,28,4,"No",61949.87,null,null,null,null,28,6,"No",null,28,97,null,34450.007196118604,null,null,null,null,28,9,"No"]
["COLONIAL BEACH TOWN PUBLIC SCHOOLS",202,null,null,null,null,null,"26.","26. Programs that use research-based cognitive and perceptual development approaches",null,null,null,null,null,null,null,null,null,null,null,null,null,null,null,null,29,1,"No",null,29,2,"No",null,29,3,"No",null,29,4,"No",3048713.67,null,null,null,null,29,6,"No",null,29,97,null,1391989.5656984174,null,null,null,null,29,9,"No"]
["COLONIAL HEIGHTS CITY PUBLIC SCHOOLS",106,null,null,null,null,null,"27.","27. Supplemental educational services as defined in Section 1116(e) of Title I, Part A",null,null,null,null,null,null,null,null,null,null,null,null,null,null,null,null,30,1,"Yes",null,30,2,"Yes",null,30,3,"Yes",null,30,4,"Yes",229607.12,null,null,null,null,30,6,"Yes",null,30,97,null,58805.687853763382,null,null,null,null,30,9,"Yes"]
["COVINGTON CITY PUBLIC SCHOOLS",107,null,null,null,null,null,null,"Program Administration",null,null,null,null,null,null,null,null,null,null,null,null,null,null,null,null,31,1,"Yes",null,31,2,"Yes",null,31,3,"Yes",null,31,4,"Yes",76356.75,null,null,null,null,31,6,"Yes",null,31,97,null,30609.581941534212,null,null,null,null,31,9,"Yes"]
["CRAIG COUNTY PUBLIC SCHOOLS",23,null,null,null,null,null,null,"Indirect Costs (not to exceed approved rate)",null,null,null,null,null,null,null,null,null,null,null,null,null,null,null,null,32,1,"Yes",null,32,2,"Yes",null,32,3,"Yes",null,32,4,"Yes",89768.19,null,null,null,null,32,6,"Yes",null,32,97,null,25205.138281947518,null,null,null,null,32,9,"Yes"]
["CULPEPER COUNTY PUBLIC SCHOOLS",24,null,null,null,null,null,null,null,null,null,null,null,null,null,null,null,null,null,null,null,null,null,null,null,33,1,"Yes",null,33,2,"Yes",null,33,3,"Yes",null,33,4,"Yes",255524.18,null,null,null,null,33,6,"Yes",null,33,97,null,124311.53942102834,null,null,null,null,33,9,"Yes"]
["CUMBERLAND COUNTY PUBLIC SCHOOLS",25,null,null,null,null,null,null,null,null,null,null,null,null,null,null,null,null,null,null,null,null,null,null,null,34,1,"No",null,34,2,"No",null,34,3,"No",null,34,4,"No",258437.37,null,null,null,null,34,6,"No",null,34,97,null,100645.59950855952,null,null,null,null,34,9,"No"]
["DANVILLE CITY PUBLIC SCHOOLS",108,null,null,null,null,null,null,null,null,null,null,null,null,null,null,null,null,null,null,null,null,null,null,null,35,1,"No",null,35,2,"No",null,35,3,"No",null,35,4,"No",93477.61,null,null,null,null,35,6,"No",null,35,97,null,32412.946700716973,null,null,null,null,35,9,"No"]
["DICKENSON COUNTY PUBLIC SCHOOLS",26,null,null,null,null,null,null,null,null,null,null,null,null,null,null,null,null,null,null,null,null,null,null,null,36,1,"Yes",null,36,2,"Yes",null,36,3,"Yes",null,36,4,"Yes",201920.72,null,null,null,null,36,6,"Yes",null,36,97,null,50301.827241203864,null,null,null,null,36,9,"Yes"]
["DINWIDDIE COUNTY PUBLIC SCHOOLS",27,null,null,null,null,null,null,null,null,null,null,null,null,null,null,null,null,null,null,null,null,null,null,null,37,1,"No",null,37,2,"No",null,37,3,"No",null,37,4,"No",56336.15,null,null,null,null,37,6,"No",null,37,97,null,24697.516897138961,null,null,null,null,37,9,"No"]
["EMPORIA CITY PUBLIC SCHOOLS",138,null,null,null,null,null,null,null,null,null,null,null,null,null,null,null,null,null,null,null,null,null,null,null,38,1,"No",null,38,2,"No",null,38,3,"No",null,38,4,"No",103272.25,null,null,null,null,38,6,"No",null,38,97,null,48209.467576626419,null,null,null,null,38,9,"No"]
["ESSEX COUNTY PUBLIC SCHOOLS",28,null,null,null,null,null,null,null,null,null,null,null,null,null,null,null,null,null,null,null,null,null,null,null,39,1,"Yes",null,39,2,"Yes",null,39,3,"Yes",null,39,4,"Yes",90678.95,null,null,null,null,39,6,"Yes",null,39,97,null,28860.845711651647,null,null,null,null,39,9,"Yes"]
["FAIRFAX CITY PUBLIC SCHOOLS",134,null,null,null,null,null,null,null,null,null,null,null,null,null,null,null,null,null,null,null,null,null,null,null,40,1,"Yes",null,40,2,"Yes",null,40,3,"Yes",null,40,4,"Yes",141258.94,null,null,null,null,40,6,"Yes",null,40,97,null,33003.840498997422,null,null,null,null,40,9,"Yes"]
["FAIRFAX COUNTY PUBLIC SCHOOLS",29,null,null,null,null,null,null,null,null,null,null,null,null,null,null,null,null,null,null,null,null,null,null,null,41,1,"Yes",null,41,2,"Yes",null,41,3,"Yes",null,41,4,"Yes",258229.39,null,null,null,null,41,6,"Yes",null,41,97,null,104802.61907880496,null,null,null,null,41,9,"Yes"]
["FALLS CHURCH CITY PUBLIC SCHOOLS",109,null,null,null,null,null,null,null,null,null,null,null,null,null,null,null,null,null,null,null,null,null,null,null,42,1,"No",null,42,2,"No",null,42,3,"No",null,42,4,"No",275512.78999999998,null,null,null,null,42,6,"No",null,42,97,null,77255.240290611619,null,null,null,null,42,9,"No"]
["FAUQUIER COUNTY PUBLIC SCHOOLS",30,null,null,null,null,null,null,null,null,null,null,null,null,null,null,null,null,null,null,null,null,null,null,null,43,1,"No",null,43,2,"No",null,43,3,"No",null,43,4,"No",1051997.08,null,null,null,null,43,6,"No",null,43,97,null,626336.91147684073,null,null,null,null,43,9,"No"]
["FLOYD COUNTY PUBLIC SCHOOLS",31,null,null,null,null,null,null,null,null,null,null,null,null,null,null,null,null,null,null,null,null,null,null,null,44,1,"No",null,44,2,"No",null,44,3,"No",null,44,4,"No",338985.77,null,null,null,null,44,6,"No",null,44,97,null,181994.29839751578,null,null,null,null,44,9,"No"]
["FLUVANNA COUNTY PUBLIC SCHOOLS",32,null,null,null,null,null,null,null,null,null,null,null,null,null,null,null,null,null,null,null,null,null,null,null,45,1,"No",null,45,2,"No",null,45,3,"No",null,45,4,"No",14143.23,null,null,null,null,45,6,"No",null,45,97,null,10000,null,null,null,null,45,9,"No"]
["FRANKLIN CITY PUBLIC SCHOOLS",135,null,null,null,null,null,null,null,null,null,null,null,null,null,null,null,null,null,null,null,null,null,null,null,46,1,"No",null,46,2,"No",null,46,3,"No",null,46,4,"No",169572.61,null,null,null,null,46,6,"No",null,46,97,null,44707.174141907053,null,null,null,null,46,9,"No"]
["FRANKLIN COUNTY PUBLIC SCHOOLS",33,null,null,null,null,null,null,null,null,null,null,null,null,null,null,null,null,null,null,null,null,null,null,null,47,1,null,null,47,2,null,null,47,3,null,null,47,4,null,null,null,null,null,null,47,6,null,null,47,97,null,69866.196568887201,null,null,null,null,47,9]
["FREDERICK COUNTY PUBLIC SCHOOLS",34,null,null,null,null,null,null,null,null,null,null,null,null,null,null,null,null,null,null,null,null,null,null,null,48,1,"No",null,48,2,"No",null,48,3,"No",null,48,4,"No",89793.73,null,null,null,null,48,6,"No",null,48,97,null,28027.08840991676,null,null,null,null,48,9,"No"]
["FREDERICKSBURG CITY PUBLIC SCHOOLS",110,null,null,null,null,null,null,null,null,null,null,null,null,null,null,null,null,null,null,null,null,null,null,null,49,1,"Yes",null,49,2,"Yes",null,49,3,"Yes",null,49,4,"Yes",49057.43,null,null,null,null,49,6,"Yes",null,49,97,null,14292.265034660913,null,null,null,null,49,9,"Yes"]
["GALAX CITY PUBLIC SCHOOLS",111,null,null,null,null,null,null,null,null,null,null,null,null,null,null,null,null,null,null,null,null,null,null,null,50,1,"Yes",null,50,2,"Yes",null,50,3,"Yes",null,50,4,"Yes",53010.23,null,null,null,null,50,6,"Yes",null,50,97,null,16856.80322596222,null,null,null,null,50,9,"Yes"]
["GILES COUNTY PUBLIC SCHOOLS",35,null,null,null,null,null,null,null,null,null,null,null,null,null,null,null,null,null,null,null,null,null,null,null,51,1,"Yes",null,51,2,"Yes",null,51,3,"Yes",null,51,4,"Yes",75397.789999999994,null,null,null,null,51,6,"Yes",null,51,97,null,28366.191208906261,null,null,null,null,51,9,"Yes"]
["GLOUCESTER COUNTY PUBLIC SCHOOLS",36,null,null,null,null,null,null,null,null,null,null,null,null,null,null,null,null,null,null,null,null,null,null,null,52,1,"Yes",null,52,2,"Yes",null,52,3,"Yes",null,52,4,"Yes",278539.78999999998,null,null,null,null,52,6,"Yes",null,52,97,null,116905.52476504337,null,null,null,null,52,9,"Yes"]
["GOOCHLAND COUNTY PUBLIC SCHOOLS",37,null,null,null,null,null,null,null,null,null,null,null,null,null,null,null,null,null,null,null,null,null,null,null,53,1,"Yes",null,53,2,"Yes",null,53,3,"Yes",null,53,4,"Yes",497194,null,null,null,null,53,6,"Yes",null,53,97,null,110956.95896172692,null,null,null,null,53,9,"Yes"]
["GRAYSON COUNTY PUBLIC SCHOOLS",38,null,null,null,null,null,null,null,null,null,null,null,null,null,null,null,null,null,null,null,null,null,null,null,54,1,"No",null,54,2,"No",null,54,3,"No",null,54,4,"No",154669.74,null,null,null,null,54,6,"No",null,54,97,null,65232.357700513006,null,null,null,null,54,9,"No"]
["GREENE COUNTY PUBLIC SCHOOLS",39,null,null,null,null,null,null,null,null,null,null,null,null,null,null,null,null,null,null,null,null,null,null,null,55,1,"Yes",null,55,2,"Yes",null,55,3,"Yes",null,55,4,"Yes",99147.32,null,null,null,null,55,6,"Yes",null,55,97,null,38029.198078748137,null,null,null,null,55,9,"Yes"]
["GREENSVILLE COUNTY PUBLIC SCHOOLS",40,null,null,null,null,null,null,null,null,null,null,null,null,null,null,null,null,null,null,null,null,null,null,null,56,1,"No",null,56,2,"No",null,56,3,"No",null,56,4,"No",76743.66,null,null,null,null,56,6,"No",null,56,97,null,26610.272277552762,null,null,null,null,56,9,"No"]
["HALIFAX COUNTY PUBLIC SCHOOLS",41,null,null,null,null,null,null,null,null,null,null,null,null,null,null,null,null,null,null,null,null,null,null,null,57,1,"Yes",null,57,2,"Yes",null,57,3,"Yes",null,57,4,"Yes",45413.08,null,null,null,null,57,6,"Yes",null,57,97,null,13708.589271880672,null,null,null,null,57,9,"Yes"]
["HAMPTON CITY PUBLIC SCHOOLS",112,null,null,null,null,null,null,null,null,null,null,null,null,null,null,null,null,null,null,null,null,null,null,null,58,1,"Yes",null,58,2,"Yes",null,58,3,"Yes",null,58,4,"Yes",220360.3,null,null,null,null,58,6,"Yes",null,58,97,null,98742.292447573738,null,null,null,null,58,9,"Yes"]
["HANOVER COUNTY PUBLIC SCHOOLS",42,null,null,null,null,null,null,null,null,null,null,null,null,null,null,null,null,null,null,null,null,null,null,null,59,1,"Yes",null,59,2,"Yes",null,59,3,"Yes",null,59,4,"Yes",56969.03,null,null,null,null,59,6,"Yes",null,59,97,null,24582.349162121529,null,null,null,null,59,9,"Yes"]
["HARRISONBURG CITY PUBLIC SCHOOLS",113,null,null,null,null,null,null,null,null,null,null,null,null,null,null,null,null,null,null,null,null,null,null,null,60,1,"No",null,60,2,"No",null,60,3,"No",null,60,4,"No",335865.35,null,null,null,null,60,6,"No",null,60,97,null,123819.79502893401,null,null,null,null,60,9,"No"]
["HENRICO COUNTY PUBLIC SCHOOLS",43,null,null,null,null,null,null,null,null,null,null,null,null,null,null,null,null,null,null,null,null,null,null,null,62,1,"No",null,62,2,"No",null,62,3,"No",null,62,4,"No",86634.99,null,null,null,null,62,6,"No",null,62,97,null,34904.435319896103,null,null,null,null,62,9,"No"]
["HENRY COUNTY PUBLIC SCHOOLS",44,null,null,null,null,null,null,null,null,null,null,null,null,null,null,null,null,null,null,null,null,null,null,null,63,1,"Yes",null,63,2,"Yes",null,63,3,"Yes",null,63,4,"Yes",50042.86,null,null,null,null,63,6,"Yes",null,63,97,null,18214.400938623257,null,null,null,null,63,9,"Yes"]
["HIGHLAND COUNTY PUBLIC SCHOOLS",45,null,null,null,null,null,null,null,null,null,null,null,null,null,null,null,null,null,null,null,null,null,null,null,65,1,"Yes",null,65,2,"Yes",null,65,3,"Yes",null,65,4,"Yes",141165.28,null,null,null,null,65,6,"Yes",null,65,97,null,51287.061526438694,null,null,null,null,65,9,"Yes"]
["HOPEWELL CITY PUBLIC SCHOOLS",114,null,null,null,null,null,null,null,null,null,null,null,null,null,null,null,null,null,null,null,null,null,null,null,66,1,"Yes",null,66,2,"Yes",null,66,3,"Yes",null,66,4,"Yes",71599.070000000007,null,null,null,null,66,6,"Yes",null,66,97,null,32311.389633776096,null,null,null,null,66,9,"Yes"]
["ISLE OF WIGHT COUNTY PUBLIC SCHOOLS",46,null,null,null,null,null,null,null,null,null,null,null,null,null,null,null,null,null,null,null,null,null,null,null,67,1,"Yes",null,67,2,"Yes",null,67,3,"Yes",null,67,4,"Yes",121535.97,null,null,null,null,67,6,"Yes",null,67,97,null,58398.756438817305,null,null,null,null,67,9,"Yes"]
["JAMES CITY COUNTY PUBLIC SCHOOLS",47,null,null,null,null,null,null,null,null,null,null,null,null,null,null,null,null,null,null,null,null,null,null,null,68,1,"Yes",null,68,2,"Yes",null,68,3,"Yes",null,68,4,"Yes",134123.26,null,null,null,null,68,6,"Yes",null,68,97,null,55202.87687924441,null,null,null,null,68,9,"Yes"]
["JAMES MADISON UNIVERSITY",871,null,null,null,null,null,null,null,null,null,null,null,null,null,null,null,null,null,null,null,null,null,null,null,69,1,"Yes",null,69,2,"Yes",null,69,3,"Yes",null,69,4,"Yes",138636.82,null,null,null,null,69,6,"Yes",null,69,97,null,60890.901564260355,null,null,null,null,69,9,"Yes"]
["KING AND QUEEN COUNTY PUBLIC SCHOOLS",49,null,null,null,null,null,null,null,null,null,null,null,null,null,null,null,null,null,null,null,null,null,null,null,70,1,"No",null,70,2,"No",null,70,3,"No",null,70,4,"No",115030.19,null,null,null,null,70,6,"No",null,70,97,null,52451.091653247378,null,null,null,null,70,9,"No"]
["KING GEORGE COUNTY PUBLIC SCHOOLS",48,null,null,null,null,null,null,null,null,null,null,null,null,null,null,null,null,null,null,null,null,null,null,null,71,1,"No",null,71,2,"No",null,71,3,"No",null,71,4,"No",331006.21999999997,null,null,null,null,71,6,"No",null,71,97,null,178352.87439580559,null,null,null,null,71,9,"No"]
["KING WILLIAM COUNTY PUBLIC SCHOOLS",50,null,null,null,null,null,null,null,null,null,null,null,null,null,null,null,null,null,null,null,null,null,null,null,72,1,"No",null,72,2,"No",null,72,3,"No",null,72,4,"No",74096.61,null,null,null,null,72,6,"No",null,72,97,null,19988.30418419691,null,null,null,null,72,9,"No"]
["LANCASTER COUNTY PUBLIC SCHOOLS",51,null,null,null,null,null,null,null,null,null,null,null,null,null,null,null,null,null,null,null,null,null,null,null,73,1,"Yes",null,73,2,"Yes",null,73,3,"Yes",null,73,4,"Yes",146931.21,null,null,null,null,73,6,"Yes",null,73,97,null,66711.113679514674,null,null,null,null,73,9,"Yes"]
["LEE COUNTY PUBLIC SCHOOLS",52,null,null,null,null,null,null,null,null,null,null,null,null,null,null,null,null,null,null,null,null,null,null,null,74,1,"Yes",null,74,2,"Yes",null,74,3,"Yes",null,74,4,"Yes",142906.75,null,null,null,null,74,6,"Yes",null,74,97,null,44107.525277852968,null,null,null,null,74,9,"Yes"]
["LEXINGTON CITY PUBLIC SCHOOLS",137,null,null,null,null,null,null,null,null,null,null,null,null,null,null,null,null,null,null,null,null,null,null,null,75,1,"No",null,75,2,"No",null,75,3,"No",null,75,4,"No",1168202.08,null,null,null,null,75,6,"No",null,75,97,null,778747.9076398235,null,null,null,null,75,9,"No"]
["LOUDOUN COUNTY PUBLIC SCHOOLS",53,null,null,null,null,null,null,null,null,null,null,null,null,null,null,null,null,null,null,null,null,null,null,null,77,1,"No",null,77,2,"No",null,77,3,"No",null,77,4,"No",204875.18,null,null,null,null,77,6,"No",null,77,97,null,70931.836264458601,null,null,null,null,77,9,"No"]
["LOUISA COUNTY PUBLIC SCHOOLS",54,null,null,null,null,null,null,null,null,null,null,null,null,null,null,null,null,null,null,null,null,null,null,null,78,1,"Yes",null,78,2,"Yes",null,78,3,"Yes",null,78,4,"Yes",34678.32,null,null,null,null,78,6,"Yes",null,78,97,null,12088.598937785153,null,null,null,null,78,9,"Yes"]
["LUNENBURG COUNTY PUBLIC SCHOOLS",55,null,null,null,null,null,null,null,null,null,null,null,null,null,null,null,null,null,null,null,null,null,null,null,79,1,"Yes",null,79,2,"Yes",null,79,3,"Yes",null,79,4,"Yes",54205.39,null,null,null,null,79,6,"Yes",null,79,97,null,19526.270763958364,null,null,null,null,79,9,"Yes"]
["LYNCHBURG CITY PUBLIC SCHOOLS",115,null,null,null,null,null,null,null,null,null,null,null,null,null,null,null,null,null,null,null,null,null,null,null,80,1,"No",null,80,2,"No",null,80,3,"No",null,80,4,"No",267446.32,null,null,null,null,80,6,"No",null,80,97,null,91262.200705895273,null,null,null,null,80,9,"No"]
["MADISON COUNTY PUBLIC SCHOOLS",56,null,null,null,null,null,null,null,null,null,null,null,null,null,null,null,null,null,null,null,null,null,null,null,81,1,"Yes",null,81,2,"Yes",null,81,3,"Yes",null,81,4,"Yes",102940.92,null,null,null,null,81,6,"Yes",null,81,97,null,37266.737781283409,null,null,null,null,81,9,"Yes"]
["MANASSAS CITY PUBLIC SCHOOLS",143,null,null,null,null,null,null,null,null,null,null,null,null,null,null,null,null,null,null,null,null,null,null,null,82,1,"No",null,82,2,"No",null,82,3,"No",null,82,4,"No",301261.94,null,null,null,null,82,6,"No",null,82,97,null,121883.30507437592,null,null,null,null,82,9,"No"]
["MANASSAS PARK CITY PUBLIC SCHOOLS",144,null,null,null,null,null,null,null,null,null,null,null,null,null,null,null,null,null,null,null,null,null,null,null,83,1,"No",null,83,2,"No",null,83,3,"No",null,83,4,"No",246309.59,null,null,null,null,83,6,"No",null,83,97,null,87534.177945197298,null,null,null,null,83,9,"No"]
["MARTINSVILLE CITY PUBLIC SCHOOLS",116,null,null,null,null,null,null,null,null,null,null,null,null,null,null,null,null,null,null,null,null,null,null,null,84,1,"No",null,84,2,"No",null,84,3,"No",null,84,4,"No",165334.59,null,null,null,null,84,6,"No",null,84,97,null,55595.936860977883,null,null,null,null,84,9,"No"]
["MATHEWS COUNTY PUBLIC SCHOOLS",57,null,null,null,null,null,null,null,null,null,null,null,null,null,null,null,null,null,null,null,null,null,null,null,85,1,"Yes",null,85,2,"Yes",null,85,3,"Yes",null,85,4,"Yes",178910.96,null,null,null,null,85,6,"Yes",null,85,97,null,83547.613265575172,null,null,null,null,85,9,"Yes"]
["MCVH AUTHORITY",948,null,null,null,null,null,null,null,null,null,null,null,null,null,null,null,null,null,null,null,null,null,null,null,86,1,"No",null,86,2,"No",null,86,3,"No",null,86,4,"No",232450.21,null,null,null,null,86,6,"No",null,86,97,null,93157.5385299185,null,null,null,null,86,9,"No"]
["MECKLENBURG COUNTY PUBLIC SCHOOLS",58,null,null,null,null,null,null,null,null,null,null,null,null,null,null,null,null,null,null,null,null,null,null,null,87,1,"No",null,87,2,"No",null,87,3,"No",null,87,4,"No",117309.13,null,null,null,null,87,6,"No",null,87,97,null,41243.16442122608,null,null,null,null,87,9,"No"]
["MIDDLESEX COUNTY PUBLIC SCHOOLS",59,null,null,null,null,null,null,null,null,null,null,null,null,null,null,null,null,null,null,null,null,null,null,null,88,1,"No",null,88,2,"No",null,88,3,"No",null,88,4,"No",405992.66,null,null,null,null,88,6,"No",null,88,97,null,198592.27561895852,null,null,null,null,88,9,"No"]
["MONTGOMERY COUNTY PUBLIC SCHOOLS",60,null,null,null,null,null,null,null,null,null,null,null,null,null,null,null,null,null,null,null,null,null,null,null,89,1,"Yes",null,89,2,"Yes",null,89,3,"Yes",null,89,4,"Yes",386761.95,null,null,null,null,89,6,"Yes",null,89,97,null,128897.22790102953,null,null,null,null,89,9,"Yes"]
["NELSON COUNTY PUBLIC SCHOOLS",62,null,null,null,null,null,null,null,null,null,null,null,null,null,null,null,null,null,null,null,null,null,null,null,90,1,"Yes",null,90,2,"Yes",null,90,3,"Yes",null,90,4,"Yes",50466.87,null,null,null,null,90,6,"Yes",null,90,97,null,14485.401545356126,null,null,null,null,90,9,"Yes"]
["NEW KENT COUNTY PUBLIC SCHOOLS",63,null,null,null,null,null,null,null,null,null,null,null,null,null,null,null,null,null,null,null,null,null,null,null,91,1,"Yes",null,91,2,"Yes",null,91,3,"Yes",null,91,4,"Yes",86637.53,null,null,null,null,91,6,"Yes",null,91,97,null,35060.819493381692,null,null,null,null,91,9,"Yes"]
["NEWPORT NEWS CITY PUBLIC SCHOOLS",117,null,null,null,null,null,null,null,null,null,null,null,null,null,null,null,null,null,null,null,null,null,null,null,92,1,"No",null,92,2,"No",null,92,3,"No",null,92,4,"No",386963.39,null,null,null,null,92,6,"No",null,92,97,null,122228.96021575408,null,null,null,null,92,9,"No"]
["NORFOLK CITY PUBLIC SCHOOLS",118,null,null,null,null,null,null,null,null,null,null,null,null,null,null,null,null,null,null,null,null,null,null,null,93,1,"Yes",null,93,2,"Yes",null,93,3,"Yes",null,93,4,"Yes",162547.51999999999,null,null,null,null,93,6,"Yes",null,93,97,null,66484.55965729279,null,null,null,null,93,9,"Yes"]
["NORTHAMPTON COUNTY PUBLIC SCHOOLS",65,null,null,null,null,null,null,null,null,null,null,null,null,null,null,null,null,null,null,null,null,null,null,null,94,1,"Yes",null,94,2,"Yes",null,94,3,"Yes",null,94,4,"Yes",290090.15000000002,null,null,null,null,94,6,"Yes",null,94,97,null,126190.43844127188,null,null,null,null,94,9,"Yes"]
["NORTHUMBERLAND COUNTY PUBLIC SCHOOLS",66,null,null,null,null,null,null,null,null,null,null,null,null,null,null,null,null,null,null,null,null,null,null,null,95,1,"Yes",null,95,2,"Yes",null,95,3,"Yes",null,95,4,"Yes",95204.6,null,null,null,null,95,6,"Yes",null,95,97,null,47955.147367519989,null,null,null,null,95,9,"Yes"]
["NORTON CITY PUBLIC SCHOOLS",119,null,null,null,null,null,null,null,null,null,null,null,null,null,null,null,null,null,null,null,null,null,null,null,96,1,"No",null,96,2,"No",null,96,3,"No",null,96,4,"No",390133.67,null,null,null,null,96,6,"No",null,96,97,null,140616.34384145495,null,null,null,null,96,9,"No"]
["NOTTOWAY COUNTY PUBLIC SCHOOLS",67,null,null,null,null,null,null,null,null,null,null,null,null,null,null,null,null,null,null,null,null,null,null,null,97,1,"Yes",null,97,2,"Yes",null,97,3,"Yes",null,97,4,"Yes",189990.91,null,null,null,null,97,6,"Yes",null,97,97,null,71007.253216542158,null,null,null,null,97,9,"Yes"]
["OLD DOMINION UNIVERSITY",798,null,null,null,null,null,null,null,null,null,null,null,null,null,null,null,null,null,null,null,null,null,null,null,98,1,"Yes",null,98,2,"Yes",null,98,3,"Yes",null,98,4,"Yes",238273.04,null,null,null,null,98,6,"Yes",null,98,97,null,49321.358809837584,null,null,null,null,98,9,"Yes"]
["ORANGE COUNTY PUBLIC SCHOOLS",68,null,null,null,null,null,null,null,null,null,null,null,null,null,null,null,null,null,null,null,null,null,null,null,101,1,"No",null,101,2,"No",null,101,3,"No",null,101,4,"No",462020.52,null,null,null,null,101,6,"No",null,101,97,null,279476.87687368598,null,null,null,null,101,9,"No"]
["PAGE COUNTY PUBLIC SCHOOLS",69,null,null,null,null,null,null,null,null,null,null,null,null,null,null,null,null,null,null,null,null,null,null,null,102,1,"Yes",null,102,2,"Yes",null,102,3,"Yes",null,102,4,"Yes",140471.06,null,null,null,null,102,6,"Yes",null,102,97,null,95271.196133981459,null,null,null,null,102,9,"Yes"]
["PATRICK COUNTY PUBLIC SCHOOLS",70,null,null,null,null,null,null,null,null,null,null,null,null,null,null,null,null,null,null,null,null,null,null,null,103,1,"No",null,103,2,"No",null,103,3,"No",null,103,4,"No",42688.72,null,null,null,null,103,6,"No",null,103,97,null,19483.819047826761,null,null,null,null,103,9,"No"]
["PETERSBURG CITY PUBLIC SCHOOLS",120,null,null,null,null,null,null,null,null,null,null,null,null,null,null,null,null,null,null,null,null,null,null,null,104,1,"Yes",null,104,2,"Yes",null,104,3,"Yes",null,104,4,"Yes",252362.99,null,null,null,null,104,6,"Yes",null,104,97,null,102945.11764000951,null,null,null,null,104,9,"Yes"]
["PITTSYLVANIA COUNTY PUBLIC SCHOOLS",71,null,null,null,null,null,null,null,null,null,null,null,null,null,null,null,null,null,null,null,null,null,null,null,106,1,"Yes",null,106,2,"Yes",null,106,3,"Yes",null,106,4,"Yes",69056.02,null,null,null,null,106,6,"Yes",null,106,97,null,38055.464689430242,null,null,null,null,106,9,"Yes"]
["POQUOSON CITY PUBLIC SCHOOLS",142,null,null,null,null,null,null,null,null,null,null,null,null,null,null,null,null,null,null,null,null,null,null,null,107,1,"No",null,107,2,"No",null,107,3,"No",null,107,4,"No",49741.84,null,null,null,null,107,6,"No",null,107,97,null,18589.003130144301,null,null,null,null,107,9,"No"]
["PORTSMOUTH CITY PUBLIC SCHOOLS",121,null,null,null,null,null,null,null,null,null,null,null,null,null,null,null,null,null,null,null,null,null,null,null,108,1,"No",null,108,2,"No",null,108,3,"No",null,108,4,"No",462675.97,null,null,null,null,108,6,"No",null,108,97,null,257503.36346868664,null,null,null,null,108,9,"No"]
["POWHATAN COUNTY PUBLIC SCHOOLS",72,null,null,null,null,null,null,null,null,null,null,null,null,null,null,null,null,null,null,null,null,null,null,null,109,1,"No",null,109,2,"No",null,109,3,"No",null,109,4,"No",26471.37,null,null,null,null,109,6,"No",null,109,97,null,10000,null,null,null,null,109,9,"No"]
["PRINCE EDWARD COUNTY PUBLIC SCHOOLS",73,null,null,null,null,null,null,null,null,null,null,null,null,null,null,null,null,null,null,null,null,null,null,null,110,1,"No",null,110,2,"No",null,110,3,"No",null,110,4,"No",123721.11,null,null,null,null,110,6,"No",null,110,97,null,73431.542165485807,null,null,null,null,110,9,"No"]
["PRINCE GEORGE COUNTY PUBLIC SCHOOLS",74,null,null,null,null,null,null,null,null,null,null,null,null,null,null,null,null,null,null,null,null,null,null,null,111,1,"No",null,111,2,"No",null,111,3,"No",null,111,4,"No",62830.43,null,null,null,null,111,6,"No",null,111,97,null,40677.772605234248,null,null,null,null,111,9,"No"]
["PRINCE WILLIAM COUNTY PUBLIC SCHOOLS",75,null,null,null,null,null,null,null,null,null,null,null,null,null,null,null,null,null,null,null,null,null,null,null,112,1,"No",null,112,2,"No",null,112,3,"No",null,112,4,"No",912948.55,null,null,null,null,112,6,"No",null,112,97,null,444328.54306886782,null,null,null,null,112,9,"No"]
["PULASKI COUNTY PUBLIC SCHOOLS",77,null,null,null,null,null,null,null,null,null,null,null,null,null,null,null,null,null,null,null,null,null,null,null,113,1,"No",null,113,2,"No",null,113,3,"No",null,113,4,"No",162327.85,null,null,null,null,113,6,"No",null,113,97,null,102489.34046299431,null,null,null,null,113,9,"No"]
["RADFORD CITY PUBLIC SCHOOLS",122,null,null,null,null,null,null,null,null,null,null,null,null,null,null,null,null,null,null,null,null,null,null,null,114,1,"Yes",null,114,2,"Yes",null,114,3,"Yes",null,114,4,"Yes",204988.17,null,null,null,null,114,6,"Yes",null,114,97,null,123018.41288486221,null,null,null,null,114,9,"Yes"]
["RAPPAHANNOCK COUNTY PUBLIC SCHOOLS",78,null,null,null,null,null,null,null,null,null,null,null,null,null,null,null,null,null,null,null,null,null,null,null,115,1,"Yes",null,115,2,"Yes",null,115,3,"Yes",null,115,4,"Yes",532463.59,null,null,null,null,115,6,"Yes",null,115,97,null,285516.81647670636,null,null,null,null,115,9,"Yes"]
["RICHMOND CITY PUBLIC SCHOOLS",123,null,null,null,null,null,null,null,null,null,null,null,null,null,null,null,null,null,null,null,null,null,null,null,116,1,"Yes",null,116,2,"Yes",null,116,3,"Yes",null,116,4,"Yes",118565.73,null,null,null,null,116,6,"Yes",null,116,97,null,75050.707803338039,null,null,null,null,116,9,"Yes"]
["RICHMOND COUNTY PUBLIC SCHOOLS",79,null,null,null,null,null,null,null,null,null,null,null,null,null,null,null,null,null,null,null,null,null,null,null,117,1,"No",null,117,2,"No",null,117,3,"No",null,117,4,"No",1448596.31,null,null,null,null,117,6,"No",null,117,97,null,682787.59546630387,null,null,null,null,117,9,"No"]
["ROANOKE CITY PUBLIC SCHOOLS",124,null,null,null,null,null,null,null,null,null,null,null,null,null,null,null,null,null,null,null,null,null,null,null,118,1,"Yes",null,118,2,"Yes",null,118,3,"Yes",null,118,4,"Yes",2073002.1,null,null,null,null,118,6,"Yes",null,118,97,null,1054797.3850872405,null,null,null,null,118,9,"Yes"]
["ROANOKE COUNTY PUBLIC SCHOOLS",80,null,null,null,null,null,null,null,null,null,null,null,null,null,null,null,null,null,null,null,null,null,null,null,119,1,"Yes",null,119,2,"Yes",null,119,3,"Yes",null,119,4,"Yes",42293.22,null,null,null,null,119,6,"Yes",null,119,97,null,17218.716260890189,null,null,null,null,119,9,"Yes"]
["ROCKBRIDGE COUNTY PUBLIC SCHOOLS",81,null,null,null,null,null,null,null,null,null,null,null,null,null,null,null,null,null,null,null,null,null,null,null,120,1,"Yes",null,120,2,"Yes",null,120,3,"Yes",null,120,4,"Yes",355881.14,null,null,null,null,120,6,"Yes",null,120,97,null,218141.85270862633,null,null,null,null,120,9,"Yes"]
["ROCKINGHAM COUNTY PUBLIC SCHOOLS",82,null,null,null,null,null,null,null,null,null,null,null,null,null,null,null,null,null,null,null,null,null,null,null,121,1,"Yes",null,121,2,"Yes",null,121,3,"Yes",null,121,4,"Yes",961786.03,null,null,null,null,121,6,"Yes",null,121,97,null,444309.11853961443,null,null,null,null,121,9,"Yes"]
["RUSSELL COUNTY PUBLIC SCHOOLS",83,null,null,null,null,null,null,null,null,null,null,null,null,null,null,null,null,null,null,null,null,null,null,null,122,1,"No",null,122,2,"No",null,122,3,"No",null,122,4,"No",57158.48,null,null,null,null,122,6,"No",null,122,97,null,25395.090489924503,null,null,null,null,122,9,"No"]
["SALEM CITY PUBLIC SCHOOLS",139,null,null,null,null,null,null,null,null,null,null,null,null,null,null,null,null,null,null,null,null,null,null,null,123,1,"No",null,123,2,"No",null,123,3,"No",null,123,4,"No",1749581.7,null,null,null,null,123,6,"No",null,123,97,null,1103620.227384933,null,null,null,null,123,9,"No"]
["SCOTT COUNTY PUBLIC SCHOOLS",84,null,null,null,null,null,null,null,null,null,null,null,null,null,null,null,null,null,null,null,null,null,null,null,124,1,"Yes",null,124,2,"Yes",null,124,3,"Yes",null,124,4,"Yes",798154.6,null,null,null,null,124,6,"Yes",null,124,97,null,493506.5072010617,null,null,null,null,124,9,"Yes"]
["SHENANDOAH COUNTY PUBLIC SCHOOLS",85,null,null,null,null,null,null,null,null,null,null,null,null,null,null,null,null,null,null,null,null,null,null,null,126,1,"No",null,126,2,"No",null,126,3,"No",null,126,4,"No",134079.94,null,null,null,null,126,6,"No",null,126,97,null,59073.255497125414,null,null,null,null,126,9,"No"]
["SMYTH COUNTY PUBLIC SCHOOLS",86,null,null,null,null,null,null,null,null,null,null,null,null,null,null,null,null,null,null,null,null,null,null,null,127,1,"Yes",null,127,2,"Yes",null,127,3,"Yes",null,127,4,"Yes",514754.32,null,null,null,null,127,6,"Yes",null,127,97,null,223793.59217229969,null,null,null,null,127,9,"Yes"]
["SOUTHAMPTON COUNTY PUBLIC SCHOOLS",87,null,null,null,null,null,null,null,null,null,null,null,null,null,null,null,null,null,null,null,null,null,null,null,128,1,"No",null,128,2,"No",null,128,3,"No",null,128,4,"No",2128931.46,null,null,null,null,128,6,"No",null,128,97,null,857952.87683908199,null,null,null,null,128,9,"No"]
["SOUTHWESTERN VA TRAINING CENTER",951,null,null,null,null,null,null,null,null,null,null,null,null,null,null,null,null,null,null,null,null,null,null,null,130,1,"Yes",null,130,2,"Yes",null,130,3,"Yes",null,130,4,"Yes",139797.48000000001,null,null,null,null,130,6,"Yes",null,130,97,null,72914.385539537223,null,null,null,null,130,9,"Yes"]
["SPOTSYLVANIA COUNTY PUBLIC SCHOOLS",88,null,null,null,null,null,null,null,null,null,null,null,null,null,null,null,null,null,null,null,null,null,null,null,131,1,"Yes",null,131,2,"Yes",null,131,3,"Yes",null,131,4,"Yes",234560.52,null,null,null,null,131,6,"Yes",null,131,97,null,22119.636576383589,null,null,null,null,131,9,"Yes"]
["STAFFORD COUNTY PUBLIC SCHOOLS",89,null,null,null,null,null,null,null,null,null,null,null,null,null,null,null,null,null,null,null,null,null,null,null,132,1,"Yes",null,132,2,"Yes",null,132,3,"Yes",null,132,4,"Yes",143040.51,null,null,null,null,132,6,"Yes",null,132,97,null,79897.875873457277,null,null,null,null,132,9,"Yes"]
["STAUNTON CITY PUBLIC SCHOOLS",126,null,null,null,null,null,null,null,null,null,null,null,null,null,null,null,null,null,null,null,null,null,null,null,134,null,null,null,134,2,null,null,134,3,null,null,134,4,null,null,null,null,null,null,134,6,null,null,134,97,null,19188.772129897927,null,null,null,null,134,9]
["SUFFOLK CITY PUBLIC SCHOOLS",127,null,null,null,null,null,null,null,null,null,null,null,null,null,null,null,null,null,null,null,null,null,null,null,135,1,"Yes",null,135,2,"Yes",null,135,3,"Yes",null,135,4,"Yes",92642.58,null,null,null,null,135,6,"Yes",null,135,97,null,51332.983750925639,null,null,null,null,135,9,"Yes"]
["SURRY COUNTY PUBLIC SCHOOLS",90,null,null,null,null,null,null,null,null,null,null,null,null,null,null,null,null,null,null,null,null,null,null,null,136,1,"No",null,136,2,"No",null,136,3,"No",null,136,4,"No",1120927.6599999999,null,null,null,null,136,6,"No",null,136,97,null,440851.12903084129,null,null,null,null,136,9,"No"]
["SUSSEX COUNTY PUBLIC SCHOOLS",91,null,null,null,null,null,null,null,null,null,null,null,null,null,null,null,null,null,null,null,null,null,null,null,137,1,"No",null,137,2,"No",null,137,3,"No",null,137,4,"No",23261.02,null,null,null,null,137,6,"No",null,137,97,null,10000,null,null,null,null,137,9,"No"]
["TAZEWELL COUNTY PUBLIC SCHOOLS",92,null,null,null,null,null,null,null,null,null,null,null,null,null,null,null,null,null,null,null,null,null,null,null,138,null,null,null,138,2,null,null,138,3,null,null,138,4,null,null,null,null,null,null,138,6,null,null,138,97,null,35375.616013633226,null,null,null,null,138,9]
["VA BEACH CITY PUBLIC SCHOOLS",128,null,null,null,null,null,null,null,null,null,null,null,null,null,null,null,null,null,null,null,null,null,null,null,139,1,"Yes",null,139,2,"Yes",null,139,3,"Yes",null,139,4,"Yes",108496.46,null,null,null,null,139,6,"Yes",null,139,97,null,30335.955218832187,null,null,null,null,139,9,"Yes"]
["VA DEPT OF CORRECTIONAL EDUCATION",900,null,null,null,null,null,null,null,null,null,null,null,null,null,null,null,null,null,null,null,null,null,null,null,140,1,null,null,140,2,null,null,140,3,null,null,140,4,null,null,null,null,null,null,140,6,null,null,140,97,null,null,null,null,null,null,140,9]
["VIRGINIA COMMONWEALTH UNIVERSITY",881,null,null,null,null,null,null,null,null,null,null,null,null,null,null,null,null,null,null,null,null,null,null,null,142,null,"Yes",null,142,2,"Yes",null,142,3,"Yes",null,142,4,"Yes",41895.93,null,null,null,null,142,6,"Yes",null,142,97,null,10000,null,null,null,null,142,9,"Yes"]
["VSDB HAMPTON",219,null,null,null,null,null,null,null,null,null,null,null,null,null,null,null,null,null,null,null,null,null,null,null,143,1,"Yes",null,143,2,"Yes",null,143,3,"Yes",null,143,4,"Yes",146942.94,null,null,null,null,143,6,"Yes",null,143,97,null,88802.948028303901,null,null,null,null,143,9,"Yes"]
["VSDB STAUNTON",218,null,null,null,null,null,null,null,null,null,null,null,null,null,null,null,null,null,null,null,null,null,null,null,144,1,"Yes",null,144,2,"Yes",null,144,3,"Yes",null,144,4,"Yes",55184.7,null,null,null,null,144,6,"Yes",null,144,97,null,23053.177883470358,null,null,null,null,144,9,"Yes"]
["WARREN COUNTY PUBLIC SCHOOLS",93,null,null,null,null,null,null,null,null,null,null,null,null,null,null,null,null,null,null,null,null,null,null,null,202,1,"Yes",null,202,2,"Yes",null,202,3,"Yes",null,202,4,"Yes",23893.33,null,null,null,null,202,6,"Yes",null,202,97,null,12872.99318726234,null,null,null,null,202,9,"Yes"]
["WASHINGTON COUNTY PUBLIC SCHOOLS",94,null,null,null,null,null,null,null,null,null,null,null,null,null,null,null,null,null,null,null,null,null,null,null,207,1,"Yes",null,207,2,"Yes",null,207,3,"Yes",null,207,4,"Yes",15601.91,null,null,null,null,207,6,"Yes",null,207,97,null,10000,null,null,null,null,207,9,"Yes"]
["WAYNESBORO CITY PUBLIC SCHOOLS",130,null,null,null,null,null,null,null,null,null,null,null,null,null,null,null,null,null,null,null,null,null,null,null,218,1,"No",null,218,2,"No",null,218,3,"No",null,218,4,"No",18032.810000000001,null,null,null,null,218,6,"No",null,218,97,null,10000,null,null,null,null,218,9,"No"]
["WEST POINT TOWN PUBLIC SCHOOLS",207,null,null,null,null,null,null,null,null,null,null,null,null,null,null,null,null,null,null,null,null,null,null,null,219,null,null,null,219,2,null,null,219,3,null,null,219,4,null,null,null,null,null,null,219,6,null,null,219,97,null,null,null,null,null,null,219,9]
["WESTMORELAND COUNTY PUBLIC SCHOOLS",95,null,null,null,null,null,null,null,null,null,null,null,null,null,null,null,null,null,null,null,null,null,null,null,871,null,null,null,871,2,null,null,871,3,null,null,871,4,null,null,null,null,null,null,871,6,null,null,871,97,null,null,null,null,null,null,871,9]
["WILLIAMSBURG CITY PUBLIC SCHOOLS",131,null,null,null,null,null,null,null,null,null,null,null,null,null,null,null,null,null,null,null,null,null,null,null,917,null,null,null,917,2,null,null,917,3,null,null,900,4,null,164890.76999999999,null,null,null,null,917,6,null,null,900,97,null,null,null,null,null,null,900,9]
["WINCHESTER CITY PUBLIC SCHOOLS",132]
["WISE COUNTY PUBLIC SCHOOLS",96,null,null,null,null,null,null,null,null,null,null,null,null,null,null,null,null,null,null,null,null,null,null,null,null,null,null,null,null,null,null,null,null,null,null,null,null,null,null,38258742.920000009,null,null,null,null,null,null,null,null,null,null,null,{"$f":"SUM(BA2:BA143)","v":17126153.999999996}]
["WOODROW WILSON REHABILITATION CTR",947]
["WYTHE COUNTY PUBLIC SCHOOLS",97]
["YORK COUNTY PUBLIC SCHOOLS",98]
[]
[null,null,null,null,null,null,null,null,null,null,null,null,null,null,null,null,null,null,null,null,null,null,null,null,1]
[null,null,null,null,null,null,null,null,null,null,null,null,null,null,null,null,null,null,null,null,null,null,null,null,2]
[null,null,null,null,null,null,null,null,null,null,null,null,null,null,null,null,null,null,null,null,null,null,null,null,3]
[null,null,null,null,null,null,null,null,null,null,null,null,null,null,null,null,null,null,null,null,null,null,null,null,4]
[null,null,null,null,null,null,null,null,null,null,null,null,null,null,null,null,null,null,null,null,null,null,null,null,5]
[null,null,null,null,null,null,null,null,null,null,null,null,null,null,null,null,null,null,null,null,null,null,null,null,6]
[null,null,null,null,null,null,null,null,null,null,null,null,null,null,null,null,null,null,null,null,null,null,null,null,7]
[null,null,null,null,null,null,null,null,null,null,null,null,null,null,null,null,null,null,null,null,null,null,null,null,8]
[null,null,null,null,null,null,null,null,null,null,null,null,null,null,null,null,null,null,null,null,null,null,null,null,9]
[null,null,null,null,null,null,null,null,null,null,null,null,null,null,null,null,null,null,null,null,null,null,null,null,10]
[null,null,null,null,null,null,null,null,null,null,null,null,null,null,null,null,null,null,null,null,null,null,null,null,11]
[null,null,null,null,null,null,null,null,null,null,null,null,null,null,null,null,null,null,null,null,null,null,null,null,12]
[null,null,null,null,null,null,null,null,null,null,null,null,null,null,null,null,null,null,null,null,null,null,null,null,13]
[null,null,null,null,null,null,null,null,null,null,null,null,null,null,null,null,null,null,null,null,null,null,null,null,14]
[null,null,null,null,null,null,null,null,null,null,null,null,null,null,null,null,null,null,null,null,null,null,null,null,15]
[null,null,null,null,null,null,null,null,null,null,null,null,null,null,null,null,null,null,null,null,null,null,null,null,16]
[null,null,null,null,null,null,null,null,null,null,null,null,null,null,null,null,null,null,null,null,null,null,null,null,17]
[null,null,null,null,null,null,null,null,null,null,null,null,null,null,null,null,null,null,null,null,null,null,null,null,18]
[null,null,null,null,null,null,null,null,null,null,null,null,null,null,null,null,null,null,null,null,null,null,null,null,19]
[null,null,null,null,null,null,null,null,null,null,null,null,null,null,null,null,null,null,null,null,null,null,null,null,20]
[null,null,null,null,null,null,null,null,null,null,null,null,null,null,null,null,null,null,null,null,null,null,null,null,21]
[null,null,null,null,null,null,null,null,null,null,null,null,null,null,null,null,null,null,null,null,null,null,null,null,22]
[null,null,null,null,null,null,null,null,null,null,null,null,null,null,null,null,null,null,null,null,null,null,null,null,23]
[null,null,null,null,null,null,null,null,null,null,null,null,null,null,null,null,null,null,null,null,null,null,null,null,24]
[null,null,null,null,null,null,null,null,null,null,null,null,null,null,null,null,null,null,null,null,null,null,null,null,25]
[null,null,null,null,null,null,null,null,null,null,null,null,null,null,null,null,null,null,null,null,null,null,null,null,26]
[null,null,null,null,null,null,null,null,null,null,null,null,null,null,null,null,null,null,null,null,null,null,null,null,27]
[null,null,null,null,null,null,null,null,null,null,null,null,null,null,null,null,null,null,null,null,null,null,null,null,28]
[null,null,null,null,null,null,null,null,null,null,null,null,null,null,null,null,null,null,null,null,null,null,null,null,29]
[null,null,null,null,null,null,null,null,null,null,null,null,null,null,null,null,null,null,null,null,null,null,null,null,30]
[null,null,null,null,null,null,null,null,null,null,null,null,null,null,null,null,null,null,null,null,null,null,null,null,31]
[null,null,null,null,null,null,null,null,null,null,null,null,null,null,null,null,null,null,null,null,null,null,null,null,32]
[null,null,null,null,null,null,null,null,null,null,null,null,null,null,null,null,null,null,null,null,null,null,null,null,33]
[null,null,null,null,null,null,null,null,null,null,null,null,null,null,null,null,null,null,null,null,null,null,null,null,34]
[null,null,null,null,null,null,null,null,null,null,null,null,null,null,null,null,null,null,null,null,null,null,null,null,35]
[null,null,null,null,null,null,null,null,null,null,null,null,null,null,null,null,null,null,null,null,null,null,null,null,36]
[null,null,null,null,null,null,null,null,null,null,null,null,null,null,null,null,null,null,null,null,null,null,null,null,37]
[null,null,null,null,null,null,null,null,null,null,null,null,null,null,null,null,null,null,null,null,null,null,null,null,38]
[null,null,null,null,null,null,null,null,null,null,null,null,null,null,null,null,null,null,null,null,null,null,null,null,39]
[null,null,null,null,null,null,null,null,null,null,null,null,null,null,null,null,null,null,null,null,null,null,null,null,40]
[null,null,null,null,null,null,null,null,null,null,null,null,null,null,null,null,null,null,null,null,null,null,null,null,41]
[null,null,null,null,null,null,null,null,null,null,null,null,null,null,null,null,null,null,null,null,null,null,null,null,42]
[null,null,null,null,null,null,null,null,null,null,null,null,null,null,null,null,null,null,null,null,null,null,null,null,43]
[null,null,null,null,null,null,null,null,null,null,null,null,null,null,null,null,null,null,null,null,null,null,null,null,44]
[null,null,null,null,null,null,null,null,null,null,null,null,null,null,null,null,null,null,null,null,null,null,null,null,45]
[null,null,null,null,null,null,null,null,null,null,null,null,null,null,null,null,null,null,null,null,null,null,null,null,46]
[null,null,null,null,null,null,null,null,null,null,null,null,null,null,null,null,null,null,null,null,null,null,null,null,47]
[null,null,null,null,null,null,null,null,null,null,null,null,null,null,null,null,null,null,null,null,null,null,null,null,48]
[null,null,null,null,null,null,null,null,null,null,null,null,null,null,null,null,null,null,null,null,null,null,null,null,49]
[null,null,null,null,null,null,null,null,null,null,null,null,null,null,null,null,null,null,null,null,null,null,null,null,50]
[null,null,null,null,null,null,null,null,null,null,null,null,null,null,null,null,null,null,null,null,null,null,null,null,51]
[null,null,null,null,null,null,null,null,null,null,null,null,null,null,null,null,null,null,null,null,null,null,null,null,52]
[null,null,null,null,null,null,null,null,null,null,null,null,null,null,null,null,null,null,null,null,null,null,null,null,53]
[null,null,null,null,null,null,null,null,null,null,null,null,null,null,null,null,null,null,null,null,null,null,null,null,54]
[null,null,null,null,null,null,null,null,null,null,null,null,null,null,null,null,null,null,null,null,null,null,null,null,55]
[null,null,null,null,null,null,null,null,null,null,null,null,null,null,null,null,null,null,null,null,null,null,null,null,56]
[null,null,null,null,null,null,null,null,null,null,null,null,null,null,null,null,null,null,null,null,null,null,null,null,57]
[null,null,null,null,null,null,null,null,null,null,null,null,null,null,null,null,null,null,null,null,null,null,null,null,58]
[null,null,null,null,null,null,null,null,null,null,null,null,null,null,null,null,null,null,null,null,null,null,null,null,59]
[null,null,null,null,null,null,null,null,null,null,null,null,null,null,null,null,null,null,null,null,null,null,null,null,60]
[null,null,null,null,null,null,null,null,null,null,null,null,null,null,null,null,null,null,null,null,null,null,null,null,62]
[null,null,null,null,null,null,null,null,null,null,null,null,null,null,null,null,null,null,null,null,null,null,null,null,63]
[null,null,null,null,null,null,null,null,null,null,null,null,null,null,null,null,null,null,null,null,null,null,null,null,65]
[null,null,null,null,null,null,null,null,null,null,null,null,null,null,null,null,null,null,null,null,null,null,null,null,66]
[null,null,null,null,null,null,null,null,null,null,null,null,null,null,null,null,null,null,null,null,null,null,null,null,67]
[null,null,null,null,null,null,null,null,null,null,null,null,null,null,null,null,null,null,null,null,null,null,null,null,68]
[null,null,null,null,null,null,null,null,null,null,null,null,null,null,null,null,null,null,null,null,null,null,null,null,69]
[null,null,null,null,null,null,null,null,null,null,null,null,null,null,null,null,null,null,null,null,null,null,null,null,70]
[null,null,null,null,null,null,null,null,null,null,null,null,null,null,null,null,null,null,null,null,null,null,null,null,71]
[null,null,null,null,null,null,null,null,null,null,null,null,null,null,null,null,null,null,null,null,null,null,null,null,72]
[null,null,null,null,null,null,null,null,null,null,null,null,null,null,null,null,null,null,null,null,null,null,null,null,73]
[null,null,null,null,null,null,null,null,null,null,null,null,null,null,null,null,null,null,null,null,null,null,null,null,74]
[null,null,null,null,null,null,null,null,null,null,null,null,null,null,null,null,null,null,null,null,null,null,null,null,75]
[null,null,null,null,null,null,null,null,null,null,null,null,null,null,null,null,null,null,null,null,null,null,null,null,77]
[null,null,null,null,null,null,null,null,null,null,null,null,null,null,null,null,null,null,null,null,null,null,null,null,78]
[null,null,null,null,null,null,null,null,null,null,null,null,null,null,null,null,null,null,null,null,null,null,null,null,79]
[null,null,null,null,null,null,null,null,null,null,null,null,null,null,null,null,null,null,null,null,null,null,null,null,80]
[null,null,null,null,null,null,null,null,null,null,null,null,null,null,null,null,null,null,null,null,null,null,null,null,81]
[null,null,null,null,null,null,null,null,null,null,null,null,null,null,null,null,null,null,null,null,null,null,null,null,82]
[null,null,null,null,null,null,null,null,null,null,null,null,null,null,null,null,null,null,null,null,null,null,null,null,83]
[null,null,null,null,null,null,null,null,null,null,null,null,null,null,null,null,null,null,null,null,null,null,null,null,84]
[null,null,null,null,null,null,null,null,null,null,null,null,null,null,null,null,null,null,null,null,null,null,null,null,85]
[null,null,null,null,null,null,null,null,null,null,null,null,null,null,null,null,null,null,null,null,null,null,null,null,86]
[null,null,null,null,null,null,null,null,null,null,null,null,null,null,null,null,null,null,null,null,null,null,null,null,87]
[null,null,null,null,null,null,null,null,null,null,null,null,null,null,null,null,null,null,null,null,null,null,null,null,88]
[null,null,null,null,null,null,null,null,null,null,null,null,null,null,null,null,null,null,null,null,null,null,null,null,89]
[null,null,null,null,null,null,null,null,null,null,null,null,null,null,null,null,null,null,null,null,null,null,null,null,90]
[null,null,null,null,null,null,null,null,null,null,null,null,null,null,null,null,null,null,null,null,null,null,null,null,91]
[null,null,null,null,null,null,null,null,null,null,null,null,null,null,null,null,null,null,null,null,null,null,null,null,92]
[null,null,null,null,null,null,null,null,null,null,null,null,null,null,null,null,null,null,null,null,null,null,null,null,93]
[null,null,null,null,null,null,null,null,null,null,null,null,null,null,null,null,null,null,null,null,null,null,null,null,94]
[null,null,null,null,null,null,null,null,null,null,null,null,null,null,null,null,null,null,null,null,null,null,null,null,95]
[null,null,null,null,null,null,null,null,null,null,null,null,null,null,null,null,null,null,null,null,null,null,null,null,96]
[null,null,null,null,null,null,null,null,null,null,null,null,null,null,null,null,null,null,null,null,null,null,null,null,97]
[null,null,null,null,null,null,null,null,null,null,null,null,null,null,null,null,null,null,null,null,null,null,null,null,98]
[null,null,null,null,null,null,null,null,null,null,null,null,null,null,null,null,null,null,null,null,null,null,null,null,101]
[null,null,null,null,null,null,null,null,null,null,null,null,null,null,null,null,null,null,null,null,null,null,null,null,102]
[null,null,null,null,null,null,null,null,null,null,null,null,null,null,null,null,null,null,null,null,null,null,null,null,103]
[null,null,null,null,null,null,null,null,null,null,null,null,null,null,null,null,null,null,null,null,null,null,null,null,104]
[null,null,null,null,null,null,null,null,null,null,null,null,null,null,null,null,null,null,null,null,null,null,null,null,106]
[null,null,null,null,null,null,null,null,null,null,null,null,null,null,null,null,null,null,null,null,null,null,null,null,107]
[null,null,null,null,null,null,null,null,null,null,null,null,null,null,null,null,null,null,null,null,null,null,null,null,108]
[null,null,null,null,null,null,null,null,null,null,null,null,null,null,null,null,null,null,null,null,null,null,null,null,109]
[null,null,null,null,null,null,null,null,null,null,null,null,null,null,null,null,null,null,null,null,null,null,null,null,110]
[null,null,null,null,null,null,null,null,null,null,null,null,null,null,null,null,null,null,null,null,null,null,null,null,111]
[null,null,null,null,null,null,null,null,null,null,null,null,null,null,null,null,null,null,null,null,null,null,null,null,112]
[null,null,null,null,null,null,null,null,null,null,null,null,null,null,null,null,null,null,null,null,null,null,null,null,113]
[null,null,null,null,null,null,null,null,null,null,null,null,null,null,null,null,null,null,null,null,null,null,null,null,114]
[null,null,null,null,null,null,null,null,null,null,null,null,null,null,null,null,null,null,null,null,null,null,null,null,115]
[null,null,null,null,null,null,null,null,null,null,null,null,null,null,null,null,null,null,null,null,null,null,null,null,116]
[null,null,null,null,null,null,null,null,null,null,null,null,null,null,null,null,null,null,null,null,null,null,null,null,117]
[null,null,null,null,null,null,null,null,null,null,null,null,null,null,null,null,null,null,null,null,null,null,null,null,118]
[null,null,null,null,null,null,null,null,null,null,null,null,null,null,null,null,null,null,null,null,null,null,null,null,119]
[null,null,null,null,null,null,null,null,null,null,null,null,null,null,null,null,null,null,null,null,null,null,null,null,120]
[null,null,null,null,null,null,null,null,null,null,null,null,null,null,null,null,null,null,null,null,null,null,null,null,121]
[null,null,null,null,null,null,null,null,null,null,null,null,null,null,null,null,null,null,null,null,null,null,null,null,122]
[null,null,null,null,null,null,null,null,null,null,null,null,null,null,null,null,null,null,null,null,null,null,null,null,123]
[null,null,null,null,null,null,null,null,null,null,null,null,null,null,null,null,null,null,null,null,null,null,null,null,124]
[null,null,null,null,null,null,null,null,null,null,null,null,null,null,null,null,null,null,null,null,null,null,null,null,126]
[null,null,null,null,null,null,null,null,null,null,null,null,null,null,null,null,null,null,null,null,null,null,null,null,127]
[null,null,null,null,null,null,null,null,null,null,null,null,null,null,null,null,null,null,null,null,null,null,null,null,128]
[null,null,null,null,null,null,null,null,null,null,null,null,null,null,null,null,null,null,null,null,null,null,null,null,130]
[null,null,null,null,null,null,null,null,null,null,null,null,null,null,null,null,null,null,null,null,null,null,null,null,131]
[null,null,null,null,null,null,null,null,null,null,null,null,null,null,null,null,null,null,null,null,null,null,null,null,132]
[null,null,null,null,null,null,null,null,null,null,null,null,null,null,null,null,null,null,null,null,null,null,null,null,134]
[null,null,null,null,null,null,null,null,null,null,null,null,null,null,null,null,null,null,null,null,null,null,null,null,135]
[null,null,null,null,null,null,null,null,null,null,null,null,null,null,null,null,null,null,null,null,null,null,null,null,136]
[null,null,null,null,null,null,null,null,null,null,null,null,null,null,null,null,null,null,null,null,null,null,null,null,137]
[null,null,null,null,null,null,null,null,null,null,null,null,null,null,null,null,null,null,null,null,null,null,null,null,138]
[null,null,null,null,null,null,null,null,null,null,null,null,null,null,null,null,null,null,null,null,null,null,null,null,139]
[null,null,null,null,null,null,null,null,null,null,null,null,null,null,null,null,null,null,null,null,null,null,null,null,140]
[null,null,null,null,null,null,null,null,null,null,null,null,null,null,null,null,null,null,null,null,null,null,null,null,142]
[null,null,null,null,null,null,null,null,null,null,null,null,null,null,null,null,null,null,null,null,null,null,null,null,143]
[null,null,null,null,null,null,null,null,null,null,null,null,null,null,null,null,null,null,null,null,null,null,null,null,144]
[null,null,null,null,null,null,null,null,null,null,null,null,null,null,null,null,null,null,null,null,null,null,null,null,202]
[null,null,null,null,null,null,null,null,null,null,null,null,null,null,null,null,null,null,null,null,null,null,null,null,207]
[null,null,null,null,null,null,null,null,null,null,null,null,null,null,null,null,null,null,null,null,null,null,null,null,218]
[null,null,null,null,null,null,null,null,null,null,null,null,null,null,null,null,null,null,null,null,null,null,null,null,219]
[null,null,null,null,null,null,null,null,null,null,null,null,null,null,null,null,null,null,null,null,null,null,null,null,871]
[null,null,null,null,null,null,null,null,null,null,null,null,null,null,null,null,null,null,null,null,null,null,null,null,917]